Workbook

Sheet A1
A3: A1 | B3: - | C3: HÔTEL DE VILLE (Place d'Armes)
H6: Résultats 1er tour
D7: INSCRITS | E7: 949 | F7: % | I7: 949
D8: Émargements | E8: 516 | I8: 508
D9: Votants (participation) | E9: 516 | F9: =IF(E7=0,0,E9/E7) -> 0.5437302424 | G9: (1) | I9: 508 | J9: 0.5353003161
D10: Nuls | E10: 11 | F10: =IF(E9=0,0,E10/E9) -> 0.02131782946 | G10: (2) | I10: 12 | J10: 0.02362204724
D11: Exprimés | E11: 505 | F11: =IF(E7=0,0,E11/E7) -> 0.5321390938 | G11: (3) | I11: 496 | J11: 0.5226554268
D12: =Candidats!A2&" "&Candidats!B2 -> Marc ARCHAMBAULT | E12: 22 | F12: =IF(E$11=0,0,E12/E$11) -> 0.04356435644 | G12: (4) | H12: Marc ARCHAMBAULT | I12: 32 | J12: 0.06451612903
D13: =Candidats!A3&" "&Candidats!B3 -> Étienne BUTZBACH | E13: 172 | F13: =IF(E$11=0,0,E13/E$11) -> 0.3405940594 | H13: Étienne BUTZBACH | I13: 104 | J13: 0.2096774194
D14: =Candidats!A4&" "&Candidats!B4 -> Bastien FAUDOT | E14: 59 | F14: =IF(E$11=0,0,E14/E$11) -> 0.1168316832 | H14: Bastien FAUDOT | I14: 60 | J14: 0.1209677419
D15: =Candidats!A5&" "&Candidats!B5 -> Damien MESLOT | E15: 252 | F15: =IF(E$11=0,0,E15/E$11) -> 0.499009901 | H15: Damien MESLOT | I15: 167 | J15: 0.3366935484
E16: =IF(SUM(E12:E15)<>E11,"!!! FAUX","") -> 
D17: TOTAL : | E17: =SUM(E12:E15) -> 505
F19: (1) Votants / Inscrits
F20: (2) Nuls / Votants
F21: (3) Exprimés / Inscrits
F22: (4) Score / Exprimés

Sheet A2
A3: A2 | B3: - | C3: SALLE DES FÊTES (Place de la République)
H6: Résultats 1er tour
D7: INSCRITS | E7: 955 | F7: % | I7: 956
D8: Émargements | E8: 619 | I8: 610
D9: Votants (participation) | E9: 619 | F9: =IF(E7=0,0,E9/E7) -> 0.6481675393 | G9: (1) | I9: 610 | J9: 0.6380753138
D10: Nuls | E10: 31 | F10: =IF(E9=0,0,E10/E9) -> 0.05008077544 | G10: (2) | I10: 18 | J10: 0.02950819672
D11: Exprimés | E11: 588 | F11: =IF(E7=0,0,E11/E7) -> 0.6157068063 | G11: (3) | I11: 592 | J11: 0.6192468619
D12: =Candidats!A2&" "&Candidats!B2 -> Marc ARCHAMBAULT | E12: 35 | F12: =IF(E$11=0,0,E12/E$11) -> 0.05952380952 | G12: (4) | H12: Marc ARCHAMBAULT | I12: 42 | J12: 0.07094594595
D13: =Candidats!A3&" "&Candidats!B3 -> Étienne BUTZBACH | E13: 147 | F13: =IF(E$11=0,0,E13/E$11) -> 0.25 | H13: Étienne BUTZBACH | I13: 107 | J13: 0.1807432432
D14: =Candidats!A4&" "&Candidats!B4 -> Bastien FAUDOT | E14: 69 | F14: =IF(E$11=0,0,E14/E$11) -> 0.1173469388 | H14: Bastien FAUDOT | I14: 69 | J14: 0.1165540541
D15: =Candidats!A5&" "&Candidats!B5 -> Damien MESLOT | E15: 337 | F15: =IF(E$11=0,0,E15/E$11) -> 0.5731292517 | H15: Damien MESLOT | I15: 233 | J15: 0.3935810811
E16: =IF(SUM(E12:E15)<>E11,"!!! FAUX","") -> 
D17: TOTAL : | E17: =SUM(E12:E15) -> 588
F19: (1) Votants / Inscrits
F20: (2) Nuls / Votants
F21: (3) Exprimés / Inscrits
F22: (4) Score / Exprimés

Sheet B1
A3: B1 | B3: - | C3: GROUPE SCOLAIRE VICTOR HUGO (Faubourg de Montbéliard)
H6: Résultats 1er tour
D7: INSCRITS | E7: 1096 | F7: % | I7: 1096
D8: Émargements | E8: 622 | I8: 623
D9: Votants (participation) | E9: 622 | F9: =IF(E7=0,0,E9/E7) -> 0.5675182482 | G9: (1) | I9: 622 | J9: 0.5675182482
D10: Nuls | E10: 16 | F10: =IF(E9=0,0,E10/E9) -> 0.02572347267 | G10: (2) | I10: 11 | J10: 0.01768488746
D11: Exprimés | E11: 606 | F11: =IF(E7=0,0,E11/E7) -> 0.552919708 | G11: (3) | I11: 611 | J11: 0.5574817518
D12: =Candidats!A2&" "&Candidats!B2 -> Marc ARCHAMBAULT | E12: 36 | F12: =IF(E$11=0,0,E12/E$11) -> 0.05940594059 | G12: (4) | H12: Marc ARCHAMBAULT | I12: 46 | J12: 0.07528641571
D13: =Candidats!A3&" "&Candidats!B3 -> Étienne BUTZBACH | E13: 187 | F13: =IF(E$11=0,0,E13/E$11) -> 0.3085808581 | H13: Étienne BUTZBACH | I13: 132 | J13: 0.2160392799
D14: =Candidats!A4&" "&Candidats!B4 -> Bastien FAUDOT | E14: 62 | F14: =IF(E$11=0,0,E14/E$11) -> 0.102310231 | H14: Bastien FAUDOT | I14: 71 | J14: 0.116202946
D15: =Candidats!A5&" "&Candidats!B5 -> Damien MESLOT | E15: 321 | F15: =IF(E$11=0,0,E15/E$11) -> 0.5297029703 | H15: Damien MESLOT | I15: 212 | J15: 0.3469721768
E16: =IF(SUM(E12:E15)<>E11,"!!! FAUX","") -> 
D17: TOTAL : | E17: =SUM(E12:E15) -> 606
F19: (1) Votants / Inscrits
F20: (2) Nuls / Votants
F21: (3) Exprimés / Inscrits
F22: (4) Score / Exprimés

Sheet B2
A3: B2 | B3: - | C3: GROUPE SCOLAIRE VICTOR HUGO (Faubourg de Montbéliard)
H6: Résultats 1er tour
D7: INSCRITS | E7: 1167 | F7: % | I7: 1167
D8: Émargements | E8: 734 | I8: 715
D9: Votants (participation) | E9: 734 | F9: =IF(E7=0,0,E9/E7) -> 0.6289631534 | G9: (1) | I9: 715 | J9: 0.6126820908
D10: Nuls | E10: 36 | F10: =IF(E9=0,0,E10/E9) -> 0.04904632153 | G10: (2) | I10: 15 | J10: 0.02097902098
D11: Exprimés | E11: 698 | F11: =IF(E7=0,0,E11/E7) -> 0.5981148243 | G11: (3) | I11: 700 | J11: 0.5998286204
D12: =Candidats!A2&" "&Candidats!B2 -> Marc ARCHAMBAULT | E12: 64 | F12: =IF(E$11=0,0,E12/E$11) -> 0.09169054441 | G12: (4) | H12: Marc ARCHAMBAULT | I12: 57 | J12: 0.08142857143
D13: =Candidats!A3&" "&Candidats!B3 -> Étienne BUTZBACH | E13: 201 | F13: =IF(E$11=0,0,E13/E$11) -> 0.287965616 | H13: Étienne BUTZBACH | I13: 126 | J13: 0.18
D14: =Candidats!A4&" "&Candidats!B4 -> Bastien FAUDOT | E14: 70 | F14: =IF(E$11=0,0,E14/E$11) -> 0.100286533 | H14: Bastien FAUDOT | I14: 87 | J14: 0.1242857143
D15: =Candidats!A5&" "&Candidats!B5 -> Damien MESLOT | E15: 363 | F15: =IF(E$11=0,0,E15/E$11) -> 0.5200573066 | H15: Damien MESLOT | I15: 255 | J15: 0.3642857143
E16: =IF(SUM(E12:E15)<>E11,"!!! FAUX","") -> 
D17: TOTAL : | E17: =SUM(E12:E15) -> 698
F19: (1) Votants / Inscrits
F20: (2) Nuls / Votants
F21: (3) Exprimés / Inscrits
F22: (4) Score / Exprimés

Sheet M1
A3: M1 | B3: - | C3: ÉCOLE MATERNELLE SAINT-EXUPÉRY (Rue de la Paix)
H6: Résultats 1er tour
D7: INSCRITS | E7: 1306 | F7: % | I7: 1306
D8: Émargements | E8: 656 | I8: 599
D9: Votants (participation) | E9: 656 | F9: =IF(E7=0,0,E9/E7) -> 0.5022970904 | G9: (1) | I9: 599 | J9: 0.4586523737
D10: Nuls | E10: 29 | F10: =IF(E9=0,0,E10/E9) -> 0.04420731707 | G10: (2) | I10: 18 | J10: 0.03005008347
D11: Exprimés | E11: 627 | F11: =IF(E7=0,0,E11/E7) -> 0.4800918836 | G11: (3) | I11: 581 | J11: 0.4448698315
D12: =Candidats!A2&" "&Candidats!B2 -> Marc ARCHAMBAULT | E12: 52 | F12: =IF(E$11=0,0,E12/E$11) -> 0.08293460925 | G12: (4) | H12: Marc ARCHAMBAULT | I12: 50 | J12: 0.08605851979
D13: =Candidats!A3&" "&Candidats!B3 -> Étienne BUTZBACH | E13: 347 | F13: =IF(E$11=0,0,E13/E$11) -> 0.5534290271 | H13: Étienne BUTZBACH | I13: 215 | J13: 0.3700516351
D14: =Candidats!A4&" "&Candidats!B4 -> Bastien FAUDOT | E14: 37 | F14: =IF(E$11=0,0,E14/E$11) -> 0.05901116427 | H14: Bastien FAUDOT | I14: 50 | J14: 0.08605851979
D15: =Candidats!A5&" "&Candidats!B5 -> Damien MESLOT | E15: 191 | F15: =IF(E$11=0,0,E15/E$11) -> 0.3046251994 | H15: Damien MESLOT | I15: 123 | J15: 0.2117039587
E16: =IF(SUM(E12:E15)<>E11,"!!! FAUX","") -> 
D17: TOTAL : | E17: =SUM(E12:E15) -> 627
F19: (1) Votants / Inscrits
F20: (2) Nuls / Votants
F21: (3) Exprimés / Inscrits
F22: (4) Score / Exprimés

Sheet N1
A3: N1 | B3: - | C3: ÉCOLE JEAN MOULIN (Rue Steiner)
H6: Résultats 1er tour
D7: INSCRITS | E7: 1456 | F7: % | I7: 1456
D8: Émargements | E8: 833 | I8: 825
D9: Votants (participation) | E9: 833 | F9: =IF(E7=0,0,E9/E7) -> 0.5721153846 | G9: (1) | I9: 825 | J9: 0.5666208791
D10: Nuls | E10: 47 | F10: =IF(E9=0,0,E10/E9) -> 0.05642256903 | G10: (2) | I10: 17 | J10: 0.02060606061
D11: Exprimés | E11: 786 | F11: =IF(E7=0,0,E11/E7) -> 0.5398351648 | G11: (3) | I11: 808 | J11: 0.5549450549
D12: =Candidats!A2&" "&Candidats!B2 -> Marc ARCHAMBAULT | E12: 101 | F12: =IF(E$11=0,0,E12/E$11) -> 0.1284987277 | G12: (4) | H12: Marc ARCHAMBAULT | I12: 111 | J12: 0.1373762376
D13: =Candidats!A3&" "&Candidats!B3 -> Étienne BUTZBACH | E13: 221 | F13: =IF(E$11=0,0,E13/E$11) -> 0.2811704835 | H13: Étienne BUTZBACH | I13: 150 | J13: 0.1856435644
D14: =Candidats!A4&" "&Candidats!B4 -> Bastien FAUDOT | E14: 84 | F14: =IF(E$11=0,0,E14/E$11) -> 0.106870229 | H14: Bastien FAUDOT | I14: 78 | J14: 0.09653465347
D15: =Candidats!A5&" "&Candidats!B5 -> Damien MESLOT | E15: 380 | F15: =IF(E$11=0,0,E15/E$11) -> 0.4834605598 | H15: Damien MESLOT | I15: 249 | J15: 0.3081683168
E16: =IF(SUM(E12:E15)<>E11,"!!! FAUX","") -> 
D17: TOTAL : | E17: =SUM(E12:E15) -> 786
F19: (1) Votants / Inscrits
F20: (2) Nuls / Votants
F21: (3) Exprimés / Inscrits
F22: (4) Score / Exprimés

Sheet N2
A3: N2 | B3: - | C3: CITÉ DES ASSOCIATIONS (Rue Jean Pierre Melville)
H6: Résultats 1er tour
D7: INSCRITS | E7: 904 | F7: % | I7: 905
D8: Émargements | E8: 590 | I8: 577
D9: Votants (participation) | E9: 590 | F9: =IF(E7=0,0,E9/E7) -> 0.6526548673 | G9: (1) | I9: 577 | J9: 0.6375690608
D10: Nuls | E10: 26 | F10: =IF(E9=0,0,E10/E9) -> 0.04406779661 | G10: (2) | I10: 11 | J10: 0.01906412478
D11: Exprimés | E11: 564 | F11: =IF(E7=0,0,E11/E7) -> 0.6238938053 | G11: (3) | I11: 566 | J11: 0.6254143646
D12: =Candidats!A2&" "&Candidats!B2 -> Marc ARCHAMBAULT | E12: 42 | F12: =IF(E$11=0,0,E12/E$11) -> 0.07446808511 | G12: (4) | H12: Marc ARCHAMBAULT | I12: 44 | J12: 0.0777385159
D13: =Candidats!A3&" "&Candidats!B3 -> Étienne BUTZBACH | E13: 211 | F13: =IF(E$11=0,0,E13/E$11) -> 0.3741134752 | H13: Étienne BUTZBACH | I13: 113 | J13: 0.1996466431
D14: =Candidats!A4&" "&Candidats!B4 -> Bastien FAUDOT | E14: 66 | F14: =IF(E$11=0,0,E14/E$11) -> 0.1170212766 | H14: Bastien FAUDOT | I14: 67 | J14: 0.1183745583
D15: =Candidats!A5&" "&Candidats!B5 -> Damien MESLOT | E15: 245 | F15: =IF(E$11=0,0,E15/E$11) -> 0.4343971631 | H15: Damien MESLOT | I15: 145 | J15: 0.2561837456
E16: =IF(SUM(E12:E15)<>E11,"!!! FAUX","") -> 
D17: TOTAL : | E17: =SUM(E12:E15) -> 564
F19: (1) Votants / Inscrits
F20: (2) Nuls / Votants
F21: (3) Exprimés / Inscrits
F22: (4) Score / Exprimés

Sheet C1
A3: C1 | B3: - | C3: ÉCOLE VICTOR SCHOELCHER (Rue Gaston Deferre)
H6: Résultats 1er tour
D7: INSCRITS | E7: 1209 | F7: % | I7: 1210
D8: Émargements | E8: 724 | I8: 719
D9: Votants (participation) | E9: 724 | F9: =IF(E7=0,0,E9/E7) -> 0.5988420182 | G9: (1) | I9: 719 | J9: 0.594214876
D10: Nuls | E10: 27 | F10: =IF(E9=0,0,E10/E9) -> 0.03729281768 | G10: (2) | I10: 17 | J10: 0.02364394993
D11: Exprimés | E11: 697 | F11: =IF(E7=0,0,E11/E7) -> 0.576509512 | G11: (3) | I11: 702 | J11: 0.5801652893
D12: =Candidats!A2&" "&Candidats!B2 -> Marc ARCHAMBAULT | E12: 44 | F12: =IF(E$11=0,0,E12/E$11) -> 0.0631276901 | G12: (4) | H12: Marc ARCHAMBAULT | I12: 65 | J12: 0.09259259259
D13: =Candidats!A3&" "&Candidats!B3 -> Étienne BUTZBACH | E13: 210 | F13: =IF(E$11=0,0,E13/E$11) -> 0.3012912482 | H13: Étienne BUTZBACH | I13: 153 | J13: 0.2179487179
D14: =Candidats!A4&" "&Candidats!B4 -> Bastien FAUDOT | E14: 70 | F14: =IF(E$11=0,0,E14/E$11) -> 0.1004304161 | H14: Bastien FAUDOT | I14: 89 | J14: 0.1267806268
D15: =Candidats!A5&" "&Candidats!B5 -> Damien MESLOT | E15: 373 | F15: =IF(E$11=0,0,E15/E$11) -> 0.5351506456 | H15: Damien MESLOT | I15: 270 | J15: 0.3846153846
E16: =IF(SUM(E12:E15)<>E11,"!!! FAUX","") -> 
D17: TOTAL : | E17: =SUM(E12:E15) -> 697
F19: (1) Votants / Inscrits
F20: (2) Nuls / Votants
F21: (3) Exprimés / Inscrits
F22: (4) Score / Exprimés

Sheet C2
A3: C2 | B3: - | C3: MAISON DU PEUPLE (Place de la Résistance)
H6: Résultats 1er tour
D7: INSCRITS | E7: 762 | F7: % | I7: 763
D8: Émargements | E8: 481 | I8: 474
D9: Votants (participation) | E9: 481 | F9: =IF(E7=0,0,E9/E7) -> 0.6312335958 | G9: (1) | I9: 474 | J9: 0.621231979
D10: Nuls | E10: 19 | F10: =IF(E9=0,0,E10/E9) -> 0.0395010395 | G10: (2) | I10: 11 | J10: 0.02320675105
D11: Exprimés | E11: 462 | F11: =IF(E7=0,0,E11/E7) -> 0.6062992126 | G11: (3) | I11: 463 | J11: 0.6068152031
D12: =Candidats!A2&" "&Candidats!B2 -> Marc ARCHAMBAULT | E12: 32 | F12: =IF(E$11=0,0,E12/E$11) -> 0.06926406926 | G12: (4) | H12: Marc ARCHAMBAULT | I12: 43 | J12: 0.09287257019
D13: =Candidats!A3&" "&Candidats!B3 -> Étienne BUTZBACH | E13: 126 | F13: =IF(E$11=0,0,E13/E$11) -> 0.2727272727 | H13: Étienne BUTZBACH | I13: 82 | J13: 0.1771058315
D14: =Candidats!A4&" "&Candidats!B4 -> Bastien FAUDOT | E14: 42 | F14: =IF(E$11=0,0,E14/E$11) -> 0.09090909091 | H14: Bastien FAUDOT | I14: 54 | J14: 0.1166306695
D15: =Candidats!A5&" "&Candidats!B5 -> Damien MESLOT | E15: 262 | F15: =IF(E$11=0,0,E15/E$11) -> 0.5670995671 | H15: Damien MESLOT | I15: 198 | J15: 0.4276457883
E16: =IF(SUM(E12:E15)<>E11,"!!! FAUX","") -> 
D17: TOTAL : | E17: =SUM(E12:E15) -> 462
F19: (1) Votants / Inscrits
F20: (2) Nuls / Votants
F21: (3) Exprimés / Inscrits
F22: (4) Score / Exprimés

Sheet C3
A3: C3 | B3: - | C3: MAISON DU PEUPLE (Place de la Résistance)
H6: Résultats 1er tour
D7: INSCRITS | E7: 921 | F7: % | I7: 921
D8: Émargements | E8: 573 | I8: 564
D9: Votants (participation) | E9: 573 | F9: =IF(E7=0,0,E9/E7) -> 0.6221498371 | G9: (1) | I9: 564 | J9: 0.6123778502
D10: Nuls | E10: 16 | F10: =IF(E9=0,0,E10/E9) -> 0.02792321117 | G10: (2) | I10: 12 | J10: 0.02127659574
D11: Exprimés | E11: 557 | F11: =IF(E7=0,0,E11/E7) -> 0.6047774159 | G11: (3) | I11: 552 | J11: 0.5993485342
D12: =Candidats!A2&" "&Candidats!B2 -> Marc ARCHAMBAULT | E12: 29 | F12: =IF(E$11=0,0,E12/E$11) -> 0.05206463196 | G12: (4) | H12: Marc ARCHAMBAULT | I12: 48 | J12: 0.08695652174
D13: =Candidats!A3&" "&Candidats!B3 -> Étienne BUTZBACH | E13: 154 | F13: =IF(E$11=0,0,E13/E$11) -> 0.276481149 | H13: Étienne BUTZBACH | I13: 105 | J13: 0.1902173913
D14: =Candidats!A4&" "&Candidats!B4 -> Bastien FAUDOT | E14: 41 | F14: =IF(E$11=0,0,E14/E$11) -> 0.07360861759 | H14: Bastien FAUDOT | I14: 56 | J14: 0.1014492754
D15: =Candidats!A5&" "&Candidats!B5 -> Damien MESLOT | E15: 333 | F15: =IF(E$11=0,0,E15/E$11) -> 0.5978456014 | H15: Damien MESLOT | I15: 256 | J15: 0.4637681159
E16: =IF(SUM(E12:E15)<>E11,"!!! FAUX","") -> 
D17: TOTAL : | E17: =SUM(E12:E15) -> 557
F19: (1) Votants / Inscrits
F20: (2) Nuls / Votants
F21: (3) Exprimés / Inscrits
F22: (4) Score / Exprimés

Sheet D1
A3: D1 | B3: - | C3: GROUPE SCOLAIRE CHÂTEAUDUN (Rue de Châteaudun)
H6: Résultats 1er tour
D7: INSCRITS | E7: 1074 | F7: % | I7: 1074
D8: Émargements | E8: 638 | I8: 613
D9: Votants (participation) | E9: 638 | F9: =IF(E7=0,0,E9/E7) -> 0.5940409683 | G9: (1) | I9: 613 | J9: 0.5707635009
D10: Nuls | E10: 27 | F10: =IF(E9=0,0,E10/E9) -> 0.04231974922 | G10: (2) | I10: 17 | J10: 0.0277324633
D11: Exprimés | E11: 611 | F11: =IF(E7=0,0,E11/E7) -> 0.5689013035 | G11: (3) | I11: 596 | J11: 0.5549348231
D12: =Candidats!A2&" "&Candidats!B2 -> Marc ARCHAMBAULT | E12: 53 | F12: =IF(E$11=0,0,E12/E$11) -> 0.08674304419 | G12: (4) | H12: Marc ARCHAMBAULT | I12: 70 | J12: 0.1174496644
D13: =Candidats!A3&" "&Candidats!B3 -> Étienne BUTZBACH | E13: 152 | F13: =IF(E$11=0,0,E13/E$11) -> 0.2487725041 | H13: Étienne BUTZBACH | I13: 103 | J13: 0.1728187919
D14: =Candidats!A4&" "&Candidats!B4 -> Bastien FAUDOT | E14: 48 | F14: =IF(E$11=0,0,E14/E$11) -> 0.07855973813 | H14: Bastien FAUDOT | I14: 51 | J14: 0.0855704698
D15: =Candidats!A5&" "&Candidats!B5 -> Damien MESLOT | E15: 358 | F15: =IF(E$11=0,0,E15/E$11) -> 0.5859247136 | H15: Damien MESLOT | I15: 271 | J15: 0.4546979866
E16: =IF(SUM(E12:E15)<>E11,"!!! FAUX","") -> 
D17: TOTAL : | E17: =SUM(E12:E15) -> 611
F19: (1) Votants / Inscrits
F20: (2) Nuls / Votants
F21: (3) Exprimés / Inscrits
F22: (4) Score / Exprimés

Sheet D2
A3: D2 | B3: - | C3: GROUPE SCOLAIRE CHÂTEAUDUN (Rue de Châteaudun)
H6: Résultats 1er tour
D7: INSCRITS | E7: 838 | F7: % | I7: 838
D8: Émargements | E8: 501 | I8: 503
D9: Votants (participation) | E9: 501 | F9: =IF(E7=0,0,E9/E7) -> 0.5978520286 | G9: (1) | I9: 503 | J9: 0.6002386635
D10: Nuls | E10: 26 | F10: =IF(E9=0,0,E10/E9) -> 0.05189620758 | G10: (2) | I10: 22 | J10: 0.04373757455
D11: Exprimés | E11: 475 | F11: =IF(E7=0,0,E11/E7) -> 0.5668257757 | G11: (3) | I11: 481 | J11: 0.5739856802
D12: =Candidats!A2&" "&Candidats!B2 -> Marc ARCHAMBAULT | E12: 44 | F12: =IF(E$11=0,0,E12/E$11) -> 0.09263157895 | G12: (4) | H12: Marc ARCHAMBAULT | I12: 56 | J12: 0.1164241164
D13: =Candidats!A3&" "&Candidats!B3 -> Étienne BUTZBACH | E13: 112 | F13: =IF(E$11=0,0,E13/E$11) -> 0.2357894737 | H13: Étienne BUTZBACH | I13: 67 | J13: 0.1392931393
D14: =Candidats!A4&" "&Candidats!B4 -> Bastien FAUDOT | E14: 52 | F14: =IF(E$11=0,0,E14/E$11) -> 0.1094736842 | H14: Bastien FAUDOT | I14: 56 | J14: 0.1164241164
D15: =Candidats!A5&" "&Candidats!B5 -> Damien MESLOT | E15: 267 | F15: =IF(E$11=0,0,E15/E$11) -> 0.5621052632 | H15: Damien MESLOT | I15: 197 | J15: 0.4095634096
E16: =IF(SUM(E12:E15)<>E11,"!!! FAUX","") -> 
D17: TOTAL : | E17: =SUM(E12:E15) -> 475
F19: (1) Votants / Inscrits
F20: (2) Nuls / Votants
F21: (3) Exprimés / Inscrits
F22: (4) Score / Exprimés

Sheet D3
A3: D3 | B3: - | C3: GROUPE SCOLAIRE CHÂTEAUDUN (Rue de Châteaudun)
H6: Résultats 1er tour
D7: INSCRITS | E7: 912 | F7: % | I7: 912
D8: Émargements | E8: 559 | I8: 554
D9: Votants (participation) | E9: 559 | F9: =IF(E7=0,0,E9/E7) -> 0.6129385965 | G9: (1) | I9: 554 | J9: 0.6074561404
D10: Nuls | E10: 30 | F10: =IF(E9=0,0,E10/E9) -> 0.05366726297 | G10: (2) | I10: 18 | J10: 0.03249097473
D11: Exprimés | E11: 529 | F11: =IF(E7=0,0,E11/E7) -> 0.5800438596 | G11: (3) | I11: 536 | J11: 0.5877192982
D12: =Candidats!A2&" "&Candidats!B2 -> Marc ARCHAMBAULT | E12: 74 | F12: =IF(E$11=0,0,E12/E$11) -> 0.1398865784 | G12: (4) | H12: Marc ARCHAMBAULT | I12: 91 | J12: 0.1697761194
D13: =Candidats!A3&" "&Candidats!B3 -> Étienne BUTZBACH | E13: 129 | F13: =IF(E$11=0,0,E13/E$11) -> 0.2438563327 | H13: Étienne BUTZBACH | I13: 70 | J13: 0.1305970149
D14: =Candidats!A4&" "&Candidats!B4 -> Bastien FAUDOT | E14: 47 | F14: =IF(E$11=0,0,E14/E$11) -> 0.08884688091 | H14: Bastien FAUDOT | I14: 47 | J14: 0.08768656716
D15: =Candidats!A5&" "&Candidats!B5 -> Damien MESLOT | E15: 279 | F15: =IF(E$11=0,0,E15/E$11) -> 0.5274102079 | H15: Damien MESLOT | I15: 199 | J15: 0.3712686567
E16: =IF(SUM(E12:E15)<>E11,"!!! FAUX","") -> 
D17: TOTAL : | E17: =SUM(E12:E15) -> 529
F19: (1) Votants / Inscrits
F20: (2) Nuls / Votants
F21: (3) Exprimés / Inscrits
F22: (4) Score / Exprimés

Sheet E1
A3: E1 | B3: - | C3: GROUPE SCOLAIRE RAYMOND AUBERT (Rue de la 1ère Armée Française)
H6: Résultats 1er tour
D7: INSCRITS | E7: 1178 | F7: % | I7: 1181
D8: Émargements | E8: 674 | I8: 668
D9: Votants (participation) | E9: 674 | F9: =IF(E7=0,0,E9/E7) -> 0.5721561969 | G9: (1) | I9: 668 | J9: 0.5656223539
D10: Nuls | E10: 28 | F10: =IF(E9=0,0,E10/E9) -> 0.04154302671 | G10: (2) | I10: 19 | J10: 0.02844311377
D11: Exprimés | E11: 646 | F11: =IF(E7=0,0,E11/E7) -> 0.5483870968 | G11: (3) | I11: 649 | J11: 0.549534293
D12: =Candidats!A2&" "&Candidats!B2 -> Marc ARCHAMBAULT | E12: 86 | F12: =IF(E$11=0,0,E12/E$11) -> 0.133126935 | G12: (4) | H12: Marc ARCHAMBAULT | I12: 96 | J12: 0.1479198767
D13: =Candidats!A3&" "&Candidats!B3 -> Étienne BUTZBACH | E13: 142 | F13: =IF(E$11=0,0,E13/E$11) -> 0.2198142415 | H13: Étienne BUTZBACH | I13: 88 | J13: 0.1355932203
D14: =Candidats!A4&" "&Candidats!B4 -> Bastien FAUDOT | E14: 76 | F14: =IF(E$11=0,0,E14/E$11) -> 0.1176470588 | H14: Bastien FAUDOT | I14: 88 | J14: 0.1355932203
D15: =Candidats!A5&" "&Candidats!B5 -> Damien MESLOT | E15: 342 | F15: =IF(E$11=0,0,E15/E$11) -> 0.5294117647 | H15: Damien MESLOT | I15: 244 | J15: 0.37596302
E16: =IF(SUM(E12:E15)<>E11,"!!! FAUX","") -> 
D17: TOTAL : | E17: =SUM(E12:E15) -> 646
F19: (1) Votants / Inscrits
F20: (2) Nuls / Votants
F21: (3) Exprimés / Inscrits
F22: (4) Score / Exprimés

Sheet E2
A3: E2 | B3: - | C3: GROUPE SCOLAIRE RAYMOND AUBERT (Rue de la 1ère Armée Française)
H6: Résultats 1er tour
D7: INSCRITS | E7: 1212 | F7: % | I7: 1212
D8: Émargements | E8: 696 | I8: 680
D9: Votants (participation) | E9: 696 | F9: =IF(E7=0,0,E9/E7) -> 0.5742574257 | G9: (1) | I9: 681 | J9: 0.5618811881
D10: Nuls | E10: 31 | F10: =IF(E9=0,0,E10/E9) -> 0.04454022989 | G10: (2) | I10: 28 | J10: 0.04111600587
D11: Exprimés | E11: 665 | F11: =IF(E7=0,0,E11/E7) -> 0.548679868 | G11: (3) | I11: 653 | J11: 0.5387788779
D12: =Candidats!A2&" "&Candidats!B2 -> Marc ARCHAMBAULT | E12: 91 | F12: =IF(E$11=0,0,E12/E$11) -> 0.1368421053 | G12: (4) | H12: Marc ARCHAMBAULT | I12: 115 | J12: 0.1761102603
D13: =Candidats!A3&" "&Candidats!B3 -> Étienne BUTZBACH | E13: 167 | F13: =IF(E$11=0,0,E13/E$11) -> 0.2511278195 | H13: Étienne BUTZBACH | I13: 122 | J13: 0.1868300153
D14: =Candidats!A4&" "&Candidats!B4 -> Bastien FAUDOT | E14: 64 | F14: =IF(E$11=0,0,E14/E$11) -> 0.0962406015 | H14: Bastien FAUDOT | I14: 51 | J14: 0.07810107198
D15: =Candidats!A5&" "&Candidats!B5 -> Damien MESLOT | E15: 343 | F15: =IF(E$11=0,0,E15/E$11) -> 0.5157894737 | H15: Damien MESLOT | I15: 241 | J15: 0.3690658499
E16: =IF(SUM(E12:E15)<>E11,"!!! FAUX","") -> 
D17: TOTAL : | E17: =SUM(E12:E15) -> 665
F19: (1) Votants / Inscrits
F20: (2) Nuls / Votants
F21: (3) Exprimés / Inscrits
F22: (4) Score / Exprimés

Sheet E3
A3: E3 | B3: - | C3: GROUPE SCOLAIRE RAYMOND AUBERT (Rue de la 1ère Armée Française)
H6: Résultats 1er tour
D7: INSCRITS | E7: 1037 | F7: % | I7: 1038
D8: Émargements | E8: 598 | I8: 564
D9: Votants (participation) | E9: 600 | F9: =IF(E7=0,0,E9/E7) -> 0.5785920926 | G9: (1) | I9: 564 | J9: 0.5433526012
D10: Nuls | E10: 30 | F10: =IF(E9=0,0,E10/E9) -> 0.05 | G10: (2) | I10: 24 | J10: 0.04255319149
D11: Exprimés | E11: 570 | F11: =IF(E7=0,0,E11/E7) -> 0.5496624879 | G11: (3) | I11: 540 | J11: 0.5202312139
D12: =Candidats!A2&" "&Candidats!B2 -> Marc ARCHAMBAULT | E12: 76 | F12: =IF(E$11=0,0,E12/E$11) -> 0.1333333333 | G12: (4) | H12: Marc ARCHAMBAULT | I12: 94 | J12: 0.1740740741
D13: =Candidats!A3&" "&Candidats!B3 -> Étienne BUTZBACH | E13: 174 | F13: =IF(E$11=0,0,E13/E$11) -> 0.3052631579 | H13: Étienne BUTZBACH | I13: 121 | J13: 0.2240740741
D14: =Candidats!A4&" "&Candidats!B4 -> Bastien FAUDOT | E14: 64 | F14: =IF(E$11=0,0,E14/E$11) -> 0.1122807018 | H14: Bastien FAUDOT | I14: 60 | J14: 0.1111111111
D15: =Candidats!A5&" "&Candidats!B5 -> Damien MESLOT | E15: 256 | F15: =IF(E$11=0,0,E15/E$11) -> 0.449122807 | H15: Damien MESLOT | I15: 167 | J15: 0.3092592593
E16: =IF(SUM(E12:E15)<>E11,"!!! FAUX","") -> 
D17: TOTAL : | E17: =SUM(E12:E15) -> 570
F19: (1) Votants / Inscrits
F20: (2) Nuls / Votants
F21: (3) Exprimés / Inscrits
F22: (4) Score / Exprimés

Sheet F1
A3: F1 | B3: - | C3: MAISON DE L'ENFANT (Rue Salvador Allende)
H6: Résultats 1er tour
D7: INSCRITS | E7: 776 | F7: % | I7: 776
D8: Émargements | E8: 476 | I8: 459
D9: Votants (participation) | E9: 476 | F9: =IF(E7=0,0,E9/E7) -> 0.6134020619 | G9: (1) | I9: 459 | J9: 0.5914948454
D10: Nuls | E10: 30 | F10: =IF(E9=0,0,E10/E9) -> 0.06302521008 | G10: (2) | I10: 18 | J10: 0.03921568627
D11: Exprimés | E11: 446 | F11: =IF(E7=0,0,E11/E7) -> 0.574742268 | G11: (3) | I11: 441 | J11: 0.5682989691
D12: =Candidats!A2&" "&Candidats!B2 -> Marc ARCHAMBAULT | E12: 52 | F12: =IF(E$11=0,0,E12/E$11) -> 0.1165919283 | G12: (4) | H12: Marc ARCHAMBAULT | I12: 57 | J12: 0.1292517007
D13: =Candidats!A3&" "&Candidats!B3 -> Étienne BUTZBACH | E13: 144 | F13: =IF(E$11=0,0,E13/E$11) -> 0.3228699552 | H13: Étienne BUTZBACH | I13: 106 | J13: 0.2403628118
D14: =Candidats!A4&" "&Candidats!B4 -> Bastien FAUDOT | E14: 44 | F14: =IF(E$11=0,0,E14/E$11) -> 0.09865470852 | H14: Bastien FAUDOT | I14: 31 | J14: 0.07029478458
D15: =Candidats!A5&" "&Candidats!B5 -> Damien MESLOT | E15: 206 | F15: =IF(E$11=0,0,E15/E$11) -> 0.4618834081 | H15: Damien MESLOT | I15: 115 | J15: 0.2607709751
E16: =IF(SUM(E12:E15)<>E11,"!!! FAUX","") -> 
D17: TOTAL : | E17: =SUM(E12:E15) -> 446
F19: (1) Votants / Inscrits
F20: (2) Nuls / Votants
F21: (3) Exprimés / Inscrits
F22: (4) Score / Exprimés

Sheet F2
A3: F2 | B3: - | C3: GROUPE SCOLAIRE ÉMILE GEHANT (Avenue des Frères Lumière)
H6: Résultats 1er tour
D7: INSCRITS | E7: 521 | F7: % | I7: 522
D8: Émargements | E8: 295 | I8: 299
D9: Votants (participation) | E9: 295 | F9: =IF(E7=0,0,E9/E7) -> 0.56621881 | G9: (1) | I9: 299 | J9: 0.5727969349
D10: Nuls | E10: 19 | F10: =IF(E9=0,0,E10/E9) -> 0.06440677966 | G10: (2) | I10: 13 | J10: 0.04347826087
D11: Exprimés | E11: 276 | F11: =IF(E7=0,0,E11/E7) -> 0.5297504798 | G11: (3) | I11: 286 | J11: 0.5478927203
D12: =Candidats!A2&" "&Candidats!B2 -> Marc ARCHAMBAULT | E12: 41 | F12: =IF(E$11=0,0,E12/E$11) -> 0.1485507246 | G12: (4) | H12: Marc ARCHAMBAULT | I12: 53 | J12: 0.1853146853
D13: =Candidats!A3&" "&Candidats!B3 -> Étienne BUTZBACH | E13: 101 | F13: =IF(E$11=0,0,E13/E$11) -> 0.365942029 | H13: Étienne BUTZBACH | I13: 49 | J13: 0.1713286713
D14: =Candidats!A4&" "&Candidats!B4 -> Bastien FAUDOT | E14: 38 | F14: =IF(E$11=0,0,E14/E$11) -> 0.1376811594 | H14: Bastien FAUDOT | I14: 34 | J14: 0.1188811189
D15: =Candidats!A5&" "&Candidats!B5 -> Damien MESLOT | E15: 96 | F15: =IF(E$11=0,0,E15/E$11) -> 0.347826087 | H15: Damien MESLOT | I15: 59 | J15: 0.2062937063
E16: =IF(SUM(E12:E15)<>E11,"!!! FAUX","") -> 
D17: TOTAL : | E17: =SUM(E12:E15) -> 276
F19: (1) Votants / Inscrits
F20: (2) Nuls / Votants
F21: (3) Exprimés / Inscrits
F22: (4) Score / Exprimés

Sheet G1
A3: G1 | B3: - | C3: GROUPE SCOLAIRE HUBERT METZGER (La Pépinière - Rue Cuvier)
H6: Résultats 1er tour
D7: INSCRITS | E7: 653 | F7: % | I7: 653
D8: Émargements | E8: 416 | I8: 414
D9: Votants (participation) | E9: 416 | F9: =IF(E7=0,0,E9/E7) -> 0.6370597243 | G9: (1) | I9: 414 | J9: 0.6339969372
D10: Nuls | E10: 25 | F10: =IF(E9=0,0,E10/E9) -> 0.06009615385 | G10: (2) | I10: 18 | J10: 0.04347826087
D11: Exprimés | E11: 391 | F11: =IF(E7=0,0,E11/E7) -> 0.5987748851 | G11: (3) | I11: 396 | J11: 0.606431853
D12: =Candidats!A2&" "&Candidats!B2 -> Marc ARCHAMBAULT | E12: 50 | F12: =IF(E$11=0,0,E12/E$11) -> 0.1278772379 | G12: (4) | H12: Marc ARCHAMBAULT | I12: 54 | J12: 0.1363636364
D13: =Candidats!A3&" "&Candidats!B3 -> Étienne BUTZBACH | E13: 144 | F13: =IF(E$11=0,0,E13/E$11) -> 0.368286445 | H13: Étienne BUTZBACH | I13: 97 | J13: 0.2449494949
D14: =Candidats!A4&" "&Candidats!B4 -> Bastien FAUDOT | E14: 48 | F14: =IF(E$11=0,0,E14/E$11) -> 0.1227621483 | H14: Bastien FAUDOT | I14: 33 | J14: 0.08333333333
D15: =Candidats!A5&" "&Candidats!B5 -> Damien MESLOT | E15: 149 | F15: =IF(E$11=0,0,E15/E$11) -> 0.3810741688 | H15: Damien MESLOT | I15: 99 | J15: 0.25
E16: =IF(SUM(E12:E15)<>E11,"!!! FAUX","") -> 
D17: TOTAL : | E17: =SUM(E12:E15) -> 391
F19: (1) Votants / Inscrits
F20: (2) Nuls / Votants
F21: (3) Exprimés / Inscrits
F22: (4) Score / Exprimés

Sheet G2
A3: G2 | B3: - | C3: GROUPE SCOLAIRE HUBERT METZGER (La Pépinière - Rue Claude Bernard)
H6: Résultats 1er tour
D7: INSCRITS | E7: 754 | F7: % | I7: 755
D8: Émargements | E8: 425 | I8: 419
D9: Votants (participation) | E9: 425 | F9: =IF(E7=0,0,E9/E7) -> 0.5636604775 | G9: (1) | I9: 419 | J9: 0.5549668874
D10: Nuls | E10: 26 | F10: =IF(E9=0,0,E10/E9) -> 0.06117647059 | G10: (2) | I10: 15 | J10: 0.03579952267
D11: Exprimés | E11: 399 | F11: =IF(E7=0,0,E11/E7) -> 0.5291777188 | G11: (3) | I11: 404 | J11: 0.5350993377
D12: =Candidats!A2&" "&Candidats!B2 -> Marc ARCHAMBAULT | E12: 55 | F12: =IF(E$11=0,0,E12/E$11) -> 0.1378446115 | G12: (4) | H12: Marc ARCHAMBAULT | I12: 64 | J12: 0.1584158416
D13: =Candidats!A3&" "&Candidats!B3 -> Étienne BUTZBACH | E13: 163 | F13: =IF(E$11=0,0,E13/E$11) -> 0.4085213033 | H13: Étienne BUTZBACH | I13: 97 | J13: 0.2400990099
D14: =Candidats!A4&" "&Candidats!B4 -> Bastien FAUDOT | E14: 34 | F14: =IF(E$11=0,0,E14/E$11) -> 0.08521303258 | H14: Bastien FAUDOT | I14: 31 | J14: 0.07673267327
D15: =Candidats!A5&" "&Candidats!B5 -> Damien MESLOT | E15: 147 | F15: =IF(E$11=0,0,E15/E$11) -> 0.3684210526 | H15: Damien MESLOT | I15: 97 | J15: 0.2400990099
E16: =IF(SUM(E12:E15)<>E11,"!!! FAUX","") -> 
D17: TOTAL : | E17: =SUM(E12:E15) -> 399
F19: (1) Votants / Inscrits
F20: (2) Nuls / Votants
F21: (3) Exprimés / Inscrits
F22: (4) Score / Exprimés

Sheet H1
A3: H1 | B3: - | C3: ANNEXE DU COLLÈGE LÉONARD DE VINCI (Faubourg de Lyon)
H6: Résultats 1er tour
D7: INSCRITS | E7: 1041 | F7: % | I7: 1042
D8: Émargements | E8: 585 | I8: 574
D9: Votants (participation) | E9: 584 | F9: =IF(E7=0,0,E9/E7) -> 0.5609990394 | G9: (1) | I9: 574 | J9: 0.5508637236
D10: Nuls | E10: 25 | F10: =IF(E9=0,0,E10/E9) -> 0.04280821918 | G10: (2) | I10: 26 | J10: 0.04529616725
D11: Exprimés | E11: 559 | F11: =IF(E7=0,0,E11/E7) -> 0.5369836695 | G11: (3) | I11: 548 | J11: 0.5259117083
D12: =Candidats!A2&" "&Candidats!B2 -> Marc ARCHAMBAULT | E12: 65 | F12: =IF(E$11=0,0,E12/E$11) -> 0.1162790698 | G12: (4) | H12: Marc ARCHAMBAULT | I12: 64 | J12: 0.1167883212
D13: =Candidats!A3&" "&Candidats!B3 -> Étienne BUTZBACH | E13: 190 | F13: =IF(E$11=0,0,E13/E$11) -> 0.3398926655 | H13: Étienne BUTZBACH | I13: 133 | J13: 0.2427007299
D14: =Candidats!A4&" "&Candidats!B4 -> Bastien FAUDOT | E14: 54 | F14: =IF(E$11=0,0,E14/E$11) -> 0.09660107335 | H14: Bastien FAUDOT | I14: 61 | J14: 0.1113138686
D15: =Candidats!A5&" "&Candidats!B5 -> Damien MESLOT | E15: 250 | F15: =IF(E$11=0,0,E15/E$11) -> 0.4472271914 | H15: Damien MESLOT | I15: 182 | J15: 0.3321167883
E16: =IF(SUM(E12:E15)<>E11,"!!! FAUX","") -> 
D17: TOTAL : | E17: =SUM(E12:E15) -> 559
F19: (1) Votants / Inscrits
F20: (2) Nuls / Votants
F21: (3) Exprimés / Inscrits
F22: (4) Score / Exprimés

Sheet J1
A3: J1 | B3: - | C3: GROUPE SCOLAIRE RENÉ RÜCKLIN (Rue Braille)
H6: Résultats 1er tour
D7: INSCRITS | E7: 597 | F7: % | I7: 597
D8: Émargements | E8: 282 | I8: 266
D9: Votants (participation) | E9: 282 | F9: =IF(E7=0,0,E9/E7) -> 0.472361809 | G9: (1) | I9: 266 | J9: 0.445561139
D10: Nuls | E10: 9 | F10: =IF(E9=0,0,E10/E9) -> 0.03191489362 | G10: (2) | I10: 9 | J10: 0.03383458647
D11: Exprimés | E11: 273 | F11: =IF(E7=0,0,E11/E7) -> 0.4572864322 | G11: (3) | I11: 257 | J11: 0.4304857621
D12: =Candidats!A2&" "&Candidats!B2 -> Marc ARCHAMBAULT | E12: 50 | F12: =IF(E$11=0,0,E12/E$11) -> 0.1831501832 | G12: (4) | H12: Marc ARCHAMBAULT | I12: 50 | J12: 0.1945525292
D13: =Candidats!A3&" "&Candidats!B3 -> Étienne BUTZBACH | E13: 98 | F13: =IF(E$11=0,0,E13/E$11) -> 0.358974359 | H13: Étienne BUTZBACH | I13: 63 | J13: 0.2451361868
D14: =Candidats!A4&" "&Candidats!B4 -> Bastien FAUDOT | E14: 30 | F14: =IF(E$11=0,0,E14/E$11) -> 0.1098901099 | H14: Bastien FAUDOT | I14: 28 | J14: 0.1089494163
D15: =Candidats!A5&" "&Candidats!B5 -> Damien MESLOT | E15: 95 | F15: =IF(E$11=0,0,E15/E$11) -> 0.347985348 | H15: Damien MESLOT | I15: 63 | J15: 0.2451361868
E16: =IF(SUM(E12:E15)<>E11,"!!! FAUX","") -> 
D17: TOTAL : | E17: =SUM(E12:E15) -> 273
F19: (1) Votants / Inscrits
F20: (2) Nuls / Votants
F21: (3) Exprimés / Inscrits
F22: (4) Score / Exprimés

Sheet J2
A3: J2 | B3: - | C3: GROUPE SCOLAIRE RENÉ RÜCKLIN (Rue Braille)
H6: Résultats 1er tour
D7: INSCRITS | E7: 818 | F7: % | I7: 818
D8: Émargements | E8: 471 | I8: 438
D9: Votants (participation) | E9: 471 | F9: =IF(E7=0,0,E9/E7) -> 0.575794621 | G9: (1) | I9: 438 | J9: 0.5354523227
D10: Nuls | E10: 28 | F10: =IF(E9=0,0,E10/E9) -> 0.05944798301 | G10: (2) | I10: 14 | J10: 0.03196347032
D11: Exprimés | E11: 443 | F11: =IF(E7=0,0,E11/E7) -> 0.5415647922 | G11: (3) | I11: 424 | J11: 0.5183374083
D12: =Candidats!A2&" "&Candidats!B2 -> Marc ARCHAMBAULT | E12: 47 | F12: =IF(E$11=0,0,E12/E$11) -> 0.1060948081 | G12: (4) | H12: Marc ARCHAMBAULT | I12: 42 | J12: 0.09905660377
D13: =Candidats!A3&" "&Candidats!B3 -> Étienne BUTZBACH | E13: 148 | F13: =IF(E$11=0,0,E13/E$11) -> 0.3340857788 | H13: Étienne BUTZBACH | I13: 102 | J13: 0.2405660377
D14: =Candidats!A4&" "&Candidats!B4 -> Bastien FAUDOT | E14: 40 | F14: =IF(E$11=0,0,E14/E$11) -> 0.09029345372 | H14: Bastien FAUDOT | I14: 43 | J14: 0.1014150943
D15: =Candidats!A5&" "&Candidats!B5 -> Damien MESLOT | E15: 208 | F15: =IF(E$11=0,0,E15/E$11) -> 0.4695259594 | H15: Damien MESLOT | I15: 137 | J15: 0.3231132075
E16: =IF(SUM(E12:E15)<>E11,"!!! FAUX","") -> 
D17: TOTAL : | E17: =SUM(E12:E15) -> 443
F19: (1) Votants / Inscrits
F20: (2) Nuls / Votants
F21: (3) Exprimés / Inscrits
F22: (4) Score / Exprimés

Sheet J3
A3: J3 | B3: - | C3: GROUPE SCOLAIRE RENÉ RÜCKLIN (Rue de Rome)
H6: Résultats 1er tour
D7: INSCRITS | E7: 562 | F7: % | I7: 562
D8: Émargements | E8: 297 | I8: 277
D9: Votants (participation) | E9: 297 | F9: =IF(E7=0,0,E9/E7) -> 0.5284697509 | G9: (1) | I9: 277 | J9: 0.4928825623
D10: Nuls | E10: 22 | F10: =IF(E9=0,0,E10/E9) -> 0.07407407407 | G10: (2) | I10: 20 | J10: 0.07220216606
D11: Exprimés | E11: 275 | F11: =IF(E7=0,0,E11/E7) -> 0.4893238434 | G11: (3) | I11: 257 | J11: 0.4572953737
D12: =Candidats!A2&" "&Candidats!B2 -> Marc ARCHAMBAULT | E12: 30 | F12: =IF(E$11=0,0,E12/E$11) -> 0.1090909091 | G12: (4) | H12: Marc ARCHAMBAULT | I12: 26 | J12: 0.1011673152
D13: =Candidats!A3&" "&Candidats!B3 -> Étienne BUTZBACH | E13: 116 | F13: =IF(E$11=0,0,E13/E$11) -> 0.4218181818 | H13: Étienne BUTZBACH | I13: 88 | J13: 0.3424124514
D14: =Candidats!A4&" "&Candidats!B4 -> Bastien FAUDOT | E14: 33 | F14: =IF(E$11=0,0,E14/E$11) -> 0.12 | H14: Bastien FAUDOT | I14: 35 | J14: 0.1361867704
D15: =Candidats!A5&" "&Candidats!B5 -> Damien MESLOT | E15: 96 | F15: =IF(E$11=0,0,E15/E$11) -> 0.3490909091 | H15: Damien MESLOT | I15: 60 | J15: 0.233463035
E16: =IF(SUM(E12:E15)<>E11,"!!! FAUX","") -> 
D17: TOTAL : | E17: =SUM(E12:E15) -> 275
F19: (1) Votants / Inscrits
F20: (2) Nuls / Votants
F21: (3) Exprimés / Inscrits
F22: (4) Score / Exprimés

Sheet K1
A3: K1 | B3: - | C3: GROUPE SCOLAIRE LOUIS PERGAUD (Rue de Zaporojie - Primaire)
H6: Résultats 1er tour
D7: INSCRITS | E7: 958 | F7: % | I7: 959
D8: Émargements | E8: 500 | I8: 487
D9: Votants (participation) | E9: 500 | F9: =IF(E7=0,0,E9/E7) -> 0.5219206681 | G9: (1) | I9: 487 | J9: 0.5078206465
D10: Nuls | E10: 23 | F10: =IF(E9=0,0,E10/E9) -> 0.046 | G10: (2) | I10: 18 | J10: 0.03696098563
D11: Exprimés | E11: 477 | F11: =IF(E7=0,0,E11/E7) -> 0.4979123173 | G11: (3) | I11: 469 | J11: 0.4890510949
D12: =Candidats!A2&" "&Candidats!B2 -> Marc ARCHAMBAULT | E12: 43 | F12: =IF(E$11=0,0,E12/E$11) -> 0.09014675052 | G12: (4) | H12: Marc ARCHAMBAULT | I12: 53 | J12: 0.1130063966
D13: =Candidats!A3&" "&Candidats!B3 -> Étienne BUTZBACH | E13: 208 | F13: =IF(E$11=0,0,E13/E$11) -> 0.4360587002 | H13: Étienne BUTZBACH | I13: 153 | J13: 0.3262260128
D14: =Candidats!A4&" "&Candidats!B4 -> Bastien FAUDOT | E14: 37 | F14: =IF(E$11=0,0,E14/E$11) -> 0.07756813417 | H14: Bastien FAUDOT | I14: 39 | J14: 0.08315565032
D15: =Candidats!A5&" "&Candidats!B5 -> Damien MESLOT | E15: 189 | F15: =IF(E$11=0,0,E15/E$11) -> 0.3962264151 | H15: Damien MESLOT | I15: 173 | J15: 0.368869936
E16: =IF(SUM(E12:E15)<>E11,"!!! FAUX","") -> 
D17: TOTAL : | E17: =SUM(E12:E15) -> 477
F19: (1) Votants / Inscrits
F20: (2) Nuls / Votants
F21: (3) Exprimés / Inscrits
F22: (4) Score / Exprimés

Sheet K2
A3: K2 | B3: - | C3: GROUPE SCOLAIRE LOUIS PERGAUD (Rue de Zaporojie - Maternelle)
H6: Résultats 1er tour
D7: INSCRITS | E7: 789 | F7: % | I7: 789
D8: Émargements | E8: 444 | I8: 395
D9: Votants (participation) | E9: 444 | F9: =IF(E7=0,0,E9/E7) -> 0.5627376426 | G9: (1) | I9: 395 | J9: 0.5006337136
D10: Nuls | E10: 14 | F10: =IF(E9=0,0,E10/E9) -> 0.03153153153 | G10: (2) | I10: 12 | J10: 0.03037974684
D11: Exprimés | E11: 430 | F11: =IF(E7=0,0,E11/E7) -> 0.5449936629 | G11: (3) | I11: 383 | J11: 0.4854245881
D12: =Candidats!A2&" "&Candidats!B2 -> Marc ARCHAMBAULT | E12: 47 | F12: =IF(E$11=0,0,E12/E$11) -> 0.1093023256 | G12: (4) | H12: Marc ARCHAMBAULT | I12: 46 | J12: 0.1201044386
D13: =Candidats!A3&" "&Candidats!B3 -> Étienne BUTZBACH | E13: 185 | F13: =IF(E$11=0,0,E13/E$11) -> 0.4302325581 | H13: Étienne BUTZBACH | I13: 128 | J13: 0.3342036554
D14: =Candidats!A4&" "&Candidats!B4 -> Bastien FAUDOT | E14: 24 | F14: =IF(E$11=0,0,E14/E$11) -> 0.05581395349 | H14: Bastien FAUDOT | I14: 30 | J14: 0.07832898172
D15: =Candidats!A5&" "&Candidats!B5 -> Damien MESLOT | E15: 174 | F15: =IF(E$11=0,0,E15/E$11) -> 0.4046511628 | H15: Damien MESLOT | I15: 133 | J15: 0.3472584856
E16: =IF(SUM(E12:E15)<>E11,"!!! FAUX","") -> 
D17: TOTAL : | E17: =SUM(E12:E15) -> 430
F19: (1) Votants / Inscrits
F20: (2) Nuls / Votants
F21: (3) Exprimés / Inscrits
F22: (4) Score / Exprimés

Sheet L1
A3: L1 | B3: - | C3: LES BARRES - MATERNELLE (Via d'Auxelles)
H6: Résultats 1er tour
D7: INSCRITS | E7: 1336 | F7: % | I7: 1336
D8: Émargements | E8: 759 | I8: 759
D9: Votants (participation) | E9: 759 | F9: =IF(E7=0,0,E9/E7) -> 0.5681137725 | G9: (1) | I9: 759 | J9: 0.5681137725
D10: Nuls | E10: 27 | F10: =IF(E9=0,0,E10/E9) -> 0.03557312253 | G10: (2) | I10: 19 | J10: 0.02503293808
D11: Exprimés | E11: 732 | F11: =IF(E7=0,0,E11/E7) -> 0.5479041916 | G11: (3) | I11: 740 | J11: 0.5538922156
D12: =Candidats!A2&" "&Candidats!B2 -> Marc ARCHAMBAULT | E12: 97 | F12: =IF(E$11=0,0,E12/E$11) -> 0.1325136612 | G12: (4) | H12: Marc ARCHAMBAULT | I12: 108 | J12: 0.1459459459
D13: =Candidats!A3&" "&Candidats!B3 -> Étienne BUTZBACH | E13: 218 | F13: =IF(E$11=0,0,E13/E$11) -> 0.2978142077 | H13: Étienne BUTZBACH | I13: 143 | J13: 0.1932432432
D14: =Candidats!A4&" "&Candidats!B4 -> Bastien FAUDOT | E14: 116 | F14: =IF(E$11=0,0,E14/E$11) -> 0.1584699454 | H14: Bastien FAUDOT | I14: 132 | J14: 0.1783783784
D15: =Candidats!A5&" "&Candidats!B5 -> Damien MESLOT | E15: 301 | F15: =IF(E$11=0,0,E15/E$11) -> 0.4112021858 | H15: Damien MESLOT | I15: 210 | J15: 0.2837837838
E16: =IF(SUM(E12:E15)<>E11,"!!! FAUX","") -> 
D17: TOTAL : | E17: =SUM(E12:E15) -> 732
F19: (1) Votants / Inscrits
F20: (2) Nuls / Votants
F21: (3) Exprimés / Inscrits
F22: (4) Score / Exprimés

Sheet L2
A3: L2 | B3: - | C3: LES BARRES - PRIMAIRE (Rue Ernest Duvillard)
H6: Résultats 1er tour
D7: INSCRITS | E7: 1154 | F7: % | I7: 1155
D8: Émargements | E8: 727 | I8: 709
D9: Votants (participation) | E9: 727 | F9: =IF(E7=0,0,E9/E7) -> 0.629982669 | G9: (1) | I9: 709 | J9: 0.6138528139
D10: Nuls | E10: 40 | F10: =IF(E9=0,0,E10/E9) -> 0.05502063274 | G10: (2) | I10: 35 | J10: 0.04936530324
D11: Exprimés | E11: 687 | F11: =IF(E7=0,0,E11/E7) -> 0.5953206239 | G11: (3) | I11: 674 | J11: 0.5835497835
D12: =Candidats!A2&" "&Candidats!B2 -> Marc ARCHAMBAULT | E12: 104 | F12: =IF(E$11=0,0,E12/E$11) -> 0.1513828239 | G12: (4) | H12: Marc ARCHAMBAULT | I12: 103 | J12: 0.1528189911
D13: =Candidats!A3&" "&Candidats!B3 -> Étienne BUTZBACH | E13: 219 | F13: =IF(E$11=0,0,E13/E$11) -> 0.3187772926 | H13: Étienne BUTZBACH | I13: 148 | J13: 0.2195845697
D14: =Candidats!A4&" "&Candidats!B4 -> Bastien FAUDOT | E14: 81 | F14: =IF(E$11=0,0,E14/E$11) -> 0.1179039301 | H14: Bastien FAUDOT | I14: 86 | J14: 0.1275964392
D15: =Candidats!A5&" "&Candidats!B5 -> Damien MESLOT | E15: 283 | F15: =IF(E$11=0,0,E15/E$11) -> 0.4119359534 | H15: Damien MESLOT | I15: 170 | J15: 0.2522255193
E16: =IF(SUM(E12:E15)<>E11,"!!! FAUX","") -> 
D17: TOTAL : | E17: =SUM(E12:E15) -> 687
F19: (1) Votants / Inscrits
F20: (2) Nuls / Votants
F21: (3) Exprimés / Inscrits
F22: (4) Score / Exprimés

Sheet EST
A1: CANTON EST
P8: =Candidats!A2 -> Marc | S8: =Candidats!A3 -> Étienne | V8: =Candidats!A4 -> Bastien | Y8: =Candidats!A5 -> Damien
D9: BUREAUX | G9: Inscrits | I9: Votants | K9: Particip. | L9: Nuls | N9: Exprimés | P9: =Candidats!B2 -> ARCHAMBAULT | R9: % | S9: =Candidats!B3 -> BUTZBACH | U9: % | V9: =Candidats!B4 -> FAUDOT | X9: % | Y9: =Candidats!B5 -> MESLOT | AA9: %
B12: A1 | C12: - | D12: Hôtel de Ville | E12: E | G12: =IF('A1'!$E7="","",'A1'!$E7) -> 949 | I12: =IF('A1'!$E9="","",'A1'!$E9) -> 516 | K12: =IF(I12=""," ",I12/$G12) -> 0.5437302424 | L12: =IF('A1'!$E10="","",'A1'!$E10) -> 11 | N12: =IF('A1'!$E11="","",'A1'!$E11) -> 505 | P12: =IF('A1'!$E12="","",'A1'!$E12) -> 22 | R12: =IF(P12=""," ",P12/$N12) -> 0.04356435644 | S12: =IF('A1'!$E13="","",'A1'!$E13) -> 172 | U12: =IF(S12=""," ",S12/$N12) -> 0.3405940594 | V12: =IF('A1'!$E14="","",'A1'!$E14) -> 59 | X12: =IF(V12=""," ",V12/$N12) -> 0.1168316832 | Y12: =IF('A1'!$E15="","",'A1'!$E15) -> 252 | AA12: =IF(Y12=""," ",Y12/$N12) -> 0.499009901
B13: A2 | C13: - | D13: Salle des fêtes | E13: E | G13: =IF('A2'!$E7="","",'A2'!$E7) -> 955 | I13: =IF('A2'!$E9="","",'A2'!$E9) -> 619 | K13: =IF(I13=""," ",I13/$G13) -> 0.6481675393 | L13: =IF('A2'!$E10="","",'A2'!$E10) -> 31 | N13: =IF('A2'!$E11="","",'A2'!$E11) -> 588 | P13: =IF('A2'!$E12="","",'A2'!$E12) -> 35 | R13: 0.05952380952 | S13: =IF('A2'!$E13="","",'A2'!$E13) -> 147 | U13: 0.25 | V13: =IF('A2'!$E14="","",'A2'!$E14) -> 69 | X13: 0.1173469388 | Y13: =IF('A2'!$E15="","",'A2'!$E15) -> 337 | AA13: 0.5731292517
B14: B1 | C14: - | D14: Victor Hugo | E14: E | G14: =IF('B1'!$E7="","",'B1'!$E7) -> 1096 | I14: =IF('B1'!$E9="","",'B1'!$E9) -> 622 | K14: 0.5675182482 | L14: =IF('B1'!$E10="","",'B1'!$E10) -> 16 | N14: =IF('B1'!$E11="","",'B1'!$E11) -> 606 | P14: =IF('B1'!$E12="","",'B1'!$E12) -> 36 | R14: 0.05940594059 | S14: =IF('B1'!$E13="","",'B1'!$E13) -> 187 | U14: 0.3085808581 | V14: =IF('B1'!E14="","",'B1'!E14) -> 62 | X14: 0.102310231 | Y14: =IF('B1'!E15="","",'B1'!E15) -> 321 | AA14: 0.5297029703
B15: B2 | C15: - | D15: Victor Hugo | E15: E | G15: =IF('B2'!$E7="","",'B2'!$E7) -> 1167 | I15: =IF('B2'!$E9="","",'B2'!$E9) -> 734 | K15: 0.6289631534 | L15: =IF('B2'!$E10="","",'B2'!$E10) -> 36 | N15: =IF('B2'!$E11="","",'B2'!$E11) -> 698 | P15: =IF('B2'!$E12="","",'B2'!$E12) -> 64 | R15: 0.09169054441 | S15: =IF('B2'!$E13="","",'B2'!$E13) -> 201 | U15: 0.287965616 | V15: =IF('B2'!E14="","",'B2'!E14) -> 70 | X15: 0.100286533 | Y15: =IF('B2'!E15="","",'B2'!E15) -> 363 | AA15: 0.5200573066
B16: M1 | C16: - | D16: Saint-Exupéry | E16: E | G16: =IF('M1'!$E7="","",'M1'!$E7) -> 1306 | I16: =IF('M1'!$E9="","",'M1'!$E9) -> 656 | K16: 0.5022970904 | L16: =IF('M1'!$E10="","",'M1'!$E10) -> 29 | N16: =IF('M1'!$E11="","",'M1'!$E11) -> 627 | P16: =IF('M1'!$E12="","",'M1'!$E12) -> 52 | R16: 0.08293460925 | S16: =IF('M1'!$E13="","",'M1'!$E13) -> 347 | U16: 0.5534290271 | V16: =IF('M1'!E14="","",'M1'!E14) -> 37 | X16: 0.05901116427 | Y16: =IF('M1'!E15="","",'M1'!E15) -> 191 | AA16: 0.3046251994
B17: N1 | C17: - | D17: Jean Moulin | E17: E | G17: =IF('N1'!$E7="","",'N1'!$E7) -> 1456 | I17: =IF('N1'!$E9="","",'N1'!$E9) -> 833 | K17: 0.5721153846 | L17: =IF('N1'!$E10="","",'N1'!$E10) -> 47 | N17: =IF('N1'!$E11="","",'N1'!$E11) -> 786 | P17: =IF('N1'!$E12="","",'N1'!$E12) -> 101 | R17: 0.1284987277 | S17: =IF('N1'!$E13="","",'N1'!$E13) -> 221 | U17: 0.2811704835 | V17: =IF('N1'!E14="","",'N1'!E14) -> 84 | X17: 0.106870229 | Y17: =IF('N1'!E15="","",'N1'!E15) -> 380 | AA17: 0.4834605598
B18: N2 | C18: - | D18: Cité des Associations | E18: E | G18: =IF('N2'!$E7="","",'N2'!$E7) -> 904 | I18: =IF('N2'!$E9="","",'N2'!$E9) -> 590 | K18: 0.6526548673 | L18: =IF('N2'!$E10="","",'N2'!$E10) -> 26 | N18: =IF('N2'!$E11="","",'N2'!$E11) -> 564 | P18: =IF('N2'!$E12="","",'N2'!$E12) -> 42 | R18: 0.07446808511 | S18: =IF('N2'!$E13="","",'N2'!$E13) -> 211 | U18: 0.3741134752 | V18: =IF('N2'!E14="","",'N2'!E14) -> 66 | X18: 0.1170212766 | Y18: =IF('N2'!E15="","",'N2'!E15) -> 245 | AA18: 0.4343971631
B20: Total Canton EST | G20: =SUM(G$12:G$18) -> 7833 | I20: =SUM(I12:I18) -> 4570 | K20: 0.5834290821 | L20: =SUM(L12:L18) -> 196 | N20: =SUM(N12:N18) -> 4374 | P20: =SUM(P12:P18) -> 352 | R20: =IF(P20=0," ",P20/$N20) -> 0.08047553727 | S20: =SUM(S12:S18) -> 1486 | U20: =IF(S20=0," ",S20/$N20) -> 0.3397347965 | V20: =SUM(V12:V18) -> 447 | X20: =IF(V20=0," ",V20/$N20) -> 0.1021947874 | Y20: =SUM(Y12:Y18) -> 2089 | AA20: =IF(Y20=0," ",Y20/$N20) -> 0.4775948788
B23: % par rapport aux VOTANTS | L23: =IF(L20=0," ",L20/$I20) -> 0.04288840263 | N23: =IF(N20=0," ",N20/$I20) -> 0.9571115974
B24: % par rapport aux INSCRITS | L24: =IF(L20=""," ",L20/$G20) -> 0.02502234138 | N24: =IF(N20=""," ",N20/$G20) -> 0.5584067407 | P24: =IF(P20=""," ",P20/$G20) -> 0.04493808247 | S24: =IF(S20=""," ",S20/$G20) -> 0.1897102004 | V24: =IF(V20=""," ",V20/$G20) -> 0.05706625814 | Y24: =IF(Y20=""," ",Y20/$G20) -> 0.2666921997

Sheet CENTRE
A1: CANTON CENTRE
P8: =Candidats!A2 -> Marc | S8: =Candidats!A3 -> Étienne | V8: =Candidats!A4 -> Bastien | Y8: =Candidats!A5 -> Damien
D9: BUREAUX | G9: Inscrits | I9: Votants | K9: Particip. | L9: Nuls | N9: Exprimés | P9: =Candidats!B2 -> ARCHAMBAULT | R9: % | S9: =Candidats!B3 -> BUTZBACH | U9: % | V9: =Candidats!B4 -> FAUDOT | X9: % | Y9: =Candidats!B5 -> MESLOT | AA9: %
B12: C1 | C12: - | D12: Victor Schoelcher | E12: C | G12: =IF('C1'!$E7="","",'C1'!$E7) -> 1209 | I12: =IF('C1'!$E9="","",'C1'!$E9) -> 724 | K12: =IF(I12=""," ",I12/$G12) -> 0.5988420182 | L12: =IF('C1'!$E10="","",'C1'!$E10) -> 27 | N12: =IF('C1'!$E11="","",'C1'!$E11) -> 697 | P12: =IF('C1'!$E12="","",'C1'!$E12) -> 44 | R12: =IF(P12=""," ",P12/$N12) -> 0.0631276901 | S12: =IF('C1'!$E13="","",'C1'!$E13) -> 210 | U12: =IF(S12=""," ",S12/$N12) -> 0.3012912482 | V12: =IF('C1'!E14="","",'C1'!E14) -> 70 | X12: =IF(V12=""," ",V12/$N12) -> 0.1004304161 | Y12: =IF('C1'!E15="","",'C1'!E15) -> 373 | AA12: =IF(Y12=""," ",Y12/$N12) -> 0.5351506456
B13: C2 | C13: - | D13: Maison du Peuple | E13: C | G13: =IF('C2'!$E7="","",'C2'!$E7) -> 762 | I13: =IF('C2'!$E9="","",'C2'!$E9) -> 481 | K13: 0.6312335958 | L13: =IF('C2'!$E10="","",'C2'!$E10) -> 19 | N13: =IF('C2'!$E11="","",'C2'!$E11) -> 462 | P13: =IF('C2'!$E12="","",'C2'!$E12) -> 32 | R13: 0.06926406926 | S13: =IF('C2'!$E13="","",'C2'!$E13) -> 126 | U13: 0.2727272727 | V13: =IF('C2'!E14="","",'C2'!E14) -> 42 | X13: 0.09090909091 | Y13: =IF('C2'!E15="","",'C2'!E15) -> 262 | AA13: 0.5670995671
B14: C3 | C14: - | D14: Maison du Peuple | E14: C | G14: =IF('C3'!$E7="","",'C3'!$E7) -> 921 | I14: =IF('C3'!$E9="","",'C3'!$E9) -> 573 | K14: 0.6221498371 | L14: =IF('C3'!$E10="","",'C3'!$E10) -> 16 | N14: =IF('C3'!$E11="","",'C3'!$E11) -> 557 | P14: =IF('C3'!$E12="","",'C3'!$E12) -> 29 | R14: 0.05206463196 | S14: =IF('C3'!$E13="","",'C3'!$E13) -> 154 | U14: 0.276481149 | V14: =IF('C3'!E14="","",'C3'!E14) -> 41 | X14: 0.07360861759 | Y14: =IF('C3'!E15="","",'C3'!E15) -> 333 | AA14: 0.5978456014
B15: D1 | C15: - | D15: Châteaudun | E15: C | G15: =IF('D1'!$E7="","",'D1'!$E7) -> 1074 | I15: =IF('D1'!$E9="","",'D1'!$E9) -> 638 | K15: 0.5940409683 | L15: =IF('D1'!$E10="","",'D1'!$E10) -> 27 | N15: =IF('D1'!$E11="","",'D1'!$E11) -> 611 | P15: =IF('D1'!$E12="","",'D1'!$E12) -> 53 | R15: 0.08674304419 | S15: =IF('D1'!$E13="","",'D1'!$E13) -> 152 | U15: 0.2487725041 | V15: =IF('D1'!E14="","",'D1'!E14) -> 48 | X15: 0.07855973813 | Y15: =IF('D1'!E15="","",'D1'!E15) -> 358 | AA15: 0.5859247136
B16: D2 | C16: - | D16: Châteaudun | E16: C | G16: =IF('D2'!$E7="","",'D2'!$E7) -> 838 | I16: =IF('D2'!$E9="","",'D2'!$E9) -> 501 | K16: 0.5978520286 | L16: =IF('D2'!$E10="","",'D2'!$E10) -> 26 | N16: =IF('D2'!$E11="","",'D2'!$E11) -> 475 | P16: =IF('D2'!$E12="","",'D2'!$E12) -> 44 | R16: 0.09263157895 | S16: =IF('D2'!$E13="","",'D2'!$E13) -> 112 | U16: 0.2357894737 | V16: =IF('D2'!E14="","",'D2'!E14) -> 52 | X16: 0.1094736842 | Y16: =IF('D2'!E15="","",'D2'!E15) -> 267 | AA16: 0.5621052632
B17: D3 | C17: - | D17: Châteaudun | E17: C | G17: =IF('D3'!$E7="","",'D3'!$E7) -> 912 | I17: =IF('D3'!$E9="","",'D3'!$E9) -> 559 | K17: 0.6129385965 | L17: =IF('D3'!$E10="","",'D3'!$E10) -> 30 | N17: =IF('D3'!$E11="","",'D3'!$E11) -> 529 | P17: =IF('D3'!$E12="","",'D3'!$E12) -> 74 | R17: 0.1398865784 | S17: =IF('D3'!$E13="","",'D3'!$E13) -> 129 | U17: 0.2438563327 | V17: =IF('D3'!E14="","",'D3'!E14) -> 47 | X17: 0.08884688091 | Y17: =IF('D3'!E15="","",'D3'!E15) -> 279 | AA17: 0.5274102079
B19: Total Canton CENTRE | G19: =SUM(G$12:G$17) -> 5716 | I19: =SUM(I12:I17) -> 3476 | K19: =IF(I19=""," ",I19/$G19) -> 0.6081175647 | L19: =SUM(L12:L17) -> 145 | N19: =SUM(N12:N17) -> 3331 | P19: =SUM(P12:P17) -> 276 | R19: =IF(P19=0," ",P19/$N19) -> 0.0828580006 | S19: =SUM(S12:S17) -> 883 | U19: =IF(S19=0," ",S19/$N19) -> 0.2650855599 | V19: =SUM(V12:V17) -> 300 | X19: =IF(V19=0," ",V19/$N19) -> 0.09006304413 | Y19: =SUM(Y12:Y17) -> 1872 | AA19: =IF(Y19=0," ",Y19/$N19) -> 0.5619933954
B22: % par rapport aux VOTANTS | L22: =IF(L19=0," ",L19/$I19) -> 0.0417146145 | N22: =IF(N19=0," ",N19/$I19) -> 0.9582853855
B23: % par rapport aux INSCRITS | L23: =IF(L19=""," ",L19/$G19) -> 0.02536738978 | N23: =IF(N19=""," ",N19/$G19) -> 0.5827501749 | P23: =IF(P19=""," ",P19/$G19) -> 0.04828551435 | S23: =IF(S19=""," ",S19/$G19) -> 0.1544786564 | V23: =IF(V19=""," ",V19/$G19) -> 0.05248425472 | Y23: =IF(Y19=""," ",Y19/$G19) -> 0.3275017495

Sheet NORD
A1: CANTON NORD
P8: =Candidats!A2 -> Marc | S8: =Candidats!A3 -> Étienne | V8: =Candidats!A4 -> Bastien | Y8: =Candidats!A5 -> Damien
D9: BUREAUX | G9: Inscrits | I9: Votants | K9: Particip. | L9: Nuls | N9: Exprimés | P9: =Candidats!B2 -> ARCHAMBAULT | R9: % | S9: =Candidats!B3 -> BUTZBACH | U9: % | V9: =Candidats!B4 -> FAUDOT | X9: % | Y9: =Candidats!B5 -> MESLOT | AA9: %
B12: E1 | C12: - | D12: Raymond Aubert | E12: N | G12: =IF('E1'!$E7="","",'E1'!$E7) -> 1178 | I12: =IF('E1'!$E9="","",'E1'!$E9) -> 674 | K12: =IF(I12=""," ",I12/$G12) -> 0.5721561969 | L12: =IF('E1'!$E10="","",'E1'!$E10) -> 28 | N12: =IF('E1'!$E11="","",'E1'!$E11) -> 646 | P12: =IF('E1'!$E12="","",'E1'!$E12) -> 86 | R12: =IF(P12=""," ",P12/$N12) -> 0.133126935 | S12: =IF('E1'!$E13="","",'E1'!$E13) -> 142 | U12: =IF(S12=""," ",S12/$N12) -> 0.2198142415 | V12: =IF('E1'!E14="","",'E1'!E14) -> 76 | X12: =IF(V12=""," ",V12/$N12) -> 0.1176470588 | Y12: =IF('E1'!E15="","",'E1'!E15) -> 342 | AA12: =IF(Y12=""," ",Y12/$N12) -> 0.5294117647
B13: E2 | C13: - | D13: Raymond Aubert | E13: N | G13: =IF('E2'!$E7="","",'E2'!$E7) -> 1212 | I13: =IF('E2'!$E9="","",'E2'!$E9) -> 696 | K13: =IF(I13=""," ",I13/$G13) -> 0.5742574257 | L13: =IF('E2'!$E10="","",'E2'!$E10) -> 31 | N13: =IF('E2'!$E11="","",'E2'!$E11) -> 665 | P13: =IF('E2'!$E12="","",'E2'!$E12) -> 91 | R13: =IF(P13=""," ",P13/$N13) -> 0.1368421053 | S13: =IF('E2'!$E13="","",'E2'!$E13) -> 167 | U13: =IF(S13=""," ",S13/$N13) -> 0.2511278195 | V13: =IF('E2'!E14="","",'E2'!E14) -> 64 | X13: =IF(V13=""," ",V13/$N13) -> 0.0962406015 | Y13: =IF('E2'!E15="","",'E2'!E15) -> 343 | AA13: =IF(Y13=""," ",Y13/$N13) -> 0.5157894737
B14: E3 | C14: - | D14: Raymond Aubert | E14: N | G14: =IF('E3'!$E7="","",'E3'!$E7) -> 1037 | I14: =IF('E3'!$E9="","",'E3'!$E9) -> 600 | K14: =IF(I14=""," ",I14/$G14) -> 0.5785920926 | L14: =IF('E3'!$E10="","",'E3'!$E10) -> 30 | N14: =IF('E3'!$E11="","",'E3'!$E11) -> 570 | P14: =IF('E3'!$E12="","",'E3'!$E12) -> 76 | R14: =IF(P14=""," ",P14/$N14) -> 0.1333333333 | S14: =IF('E3'!$E13="","",'E3'!$E13) -> 174 | U14: =IF(S14=""," ",S14/$N14) -> 0.3052631579 | V14: =IF('E3'!E14="","",'E3'!E14) -> 64 | X14: =IF(V14=""," ",V14/$N14) -> 0.1122807018 | Y14: =IF('E3'!E15="","",'E3'!E15) -> 256 | AA14: =IF(Y14=""," ",Y14/$N14) -> 0.449122807
B15: F1 | C15: - | D15: Maison de l'enfant | E15: N | G15: =IF('F1'!$E7="","",'F1'!$E7) -> 776 | I15: =IF('F1'!$E9="","",'F1'!$E9) -> 476 | K15: =IF(I15=""," ",I15/$G15) -> 0.6134020619 | L15: =IF('F1'!$E10="","",'F1'!$E10) -> 30 | N15: =IF('F1'!$E11="","",'F1'!$E11) -> 446 | P15: =IF('F1'!$E12="","",'F1'!$E12) -> 52 | R15: =IF(P15=""," ",P15/$N15) -> 0.1165919283 | S15: =IF('F1'!$E13="","",'F1'!$E13) -> 144 | U15: =IF(S15=""," ",S15/$N15) -> 0.3228699552 | V15: =IF('F1'!E14="","",'F1'!E14) -> 44 | X15: =IF(V15=""," ",V15/$N15) -> 0.09865470852 | Y15: =IF('F1'!E15="","",'F1'!E15) -> 206 | AA15: =IF(Y15=""," ",Y15/$N15) -> 0.4618834081
B16: F2 | C16: - | D16: Émile Géhant | E16: N | G16: =IF('F2'!$E7="","",'F2'!$E7) -> 521 | I16: =IF('F2'!$E9="","",'F2'!$E9) -> 295 | K16: =IF(I16=""," ",I16/$G16) -> 0.56621881 | L16: =IF('F2'!$E10="","",'F2'!$E10) -> 19 | N16: =IF('F2'!$E11="","",'F2'!$E11) -> 276 | P16: =IF('F2'!$E12="","",'F2'!$E12) -> 41 | R16: =IF(P16=""," ",P16/$N16) -> 0.1485507246 | S16: =IF('F2'!$E13="","",'F2'!$E13) -> 101 | U16: =IF(S16=""," ",S16/$N16) -> 0.365942029 | V16: =IF('F2'!E14="","",'F2'!E14) -> 38 | X16: =IF(V16=""," ",V16/$N16) -> 0.1376811594 | Y16: =IF('F2'!E15="","",'F2'!E15) -> 96 | AA16: =IF(Y16=""," ",Y16/$N16) -> 0.347826087
B18: Total Canton NORD | G18: =SUM(G$12:G$16) -> 4724 | I18: =SUM(I12:I16) -> 2741 | K18: =IF(I18=""," ",I18/$G18) -> 0.5802286198 | L18: =SUM(L12:L16) -> 138 | N18: =SUM(N12:N16) -> 2603 | P18: =SUM(P12:P16) -> 346 | R18: =IF(P18=0," ",P18/$N18) -> 0.1329235498 | S18: =SUM(S12:S16) -> 728 | U18: =IF(S18=0," ",S18/$N18) -> 0.2796772954 | V18: =SUM(V12:V16) -> 286 | X18: =IF(V18=0," ",V18/$N18) -> 0.1098732232 | Y18: =SUM(Y12:Y16) -> 1243 | AA18: =IF(Y18=0," ",Y18/$N18) -> 0.4775259316
B21: % par rapport aux VOTANTS | L21: =IF(L18=0," ",L18/$I18) -> 0.05034658884 | N21: =IF(N18=0," ",N18/$I18) -> 0.9496534112
B22: % par rapport aux INSCRITS | L22: =IF(L18=""," ",L18/$G18) -> 0.02921253175 | N22: =IF(N18=""," ",N18/$G18) -> 0.5510160881 | P22: =IF(P18=""," ",P18/$G18) -> 0.07324301439 | S22: =IF(S18=""," ",S18/$G18) -> 0.1541066892 | V22: =IF(V18=""," ",V18/$G18) -> 0.06054191363 | Y22: =IF(Y18=""," ",Y18/$G18) -> 0.2631244708

Sheet SUD
A1: CANTON SUD
P8: =Candidats!A2 -> Marc | S8: =Candidats!A3 -> Étienne | V8: =Candidats!A4 -> Bastien | Y8: =Candidats!A5 -> Damien
D9: BUREAUX | G9: Inscrits | I9: Votants | K9: Particip. | L9: Nuls | N9: Exprimés | P9: =Candidats!B2 -> ARCHAMBAULT | R9: % | S9: =Candidats!B3 -> BUTZBACH | U9: % | V9: =Candidats!B4 -> FAUDOT | X9: % | Y9: =Candidats!B5 -> MESLOT | AA9: %
B12: G1 | C12: - | D12: Hubert Metzger | E12: S | G12: =IF('G1'!$E7="","",'G1'!$E7) -> 653 | I12: =IF('G1'!$E9="","",'G1'!$E9) -> 416 | K12: =IF(I12=""," ",I12/$G12) -> 0.6370597243 | L12: =IF('G1'!$E10="","",'G1'!$E10) -> 25 | N12: =IF('G1'!$E11="","",'G1'!$E11) -> 391 | P12: =IF('G1'!$E12="","",'G1'!$E12) -> 50 | R12: =IF(P12=""," ",P12/$N12) -> 0.1278772379 | S12: =IF('G1'!$E13="","",'G1'!$E13) -> 144 | U12: =IF(S12=""," ",S12/$N12) -> 0.368286445 | V12: =IF('G1'!E14="","",'G1'!E14) -> 48 | X12: =IF(V12=""," ",V12/$N12) -> 0.1227621483 | Y12: =IF('G1'!E15="","",'G1'!E15) -> 149 | AA12: =IF(Y12=""," ",Y12/$N12) -> 0.3810741688
B13: G2 | C13: - | D13: Hubert Metzger | E13: S | G13: =IF('G2'!$E7="","",'G2'!$E7) -> 754 | I13: =IF('G2'!$E9="","",'G2'!$E9) -> 425 | K13: 0.5636604775 | L13: =IF('G2'!$E10="","",'G2'!$E10) -> 26 | N13: =IF('G2'!$E11="","",'G2'!$E11) -> 399 | P13: =IF('G2'!$E12="","",'G2'!$E12) -> 55 | R13: 0.1378446115 | S13: =IF('G2'!$E13="","",'G2'!$E13) -> 163 | U13: 0.4085213033 | V13: =IF('G2'!E14="","",'G2'!E14) -> 34 | X13: 0.08521303258 | Y13: =IF('G2'!E15="","",'G2'!E15) -> 147 | AA13: 0.3684210526
B14: H1 | C14: - | D14: Léonard de Vinci | E14: S | G14: =IF('H1'!$E7="","",'H1'!$E7) -> 1041 | I14: =IF('H1'!$E9="","",'H1'!$E9) -> 584 | K14: 0.5609990394 | L14: =IF('H1'!$E10="","",'H1'!$E10) -> 25 | N14: =IF('H1'!$E11="","",'H1'!$E11) -> 559 | P14: =IF('H1'!$E12="","",'H1'!$E12) -> 65 | R14: 0.1162790698 | S14: =IF('H1'!$E13="","",'H1'!$E13) -> 190 | U14: 0.3398926655 | V14: =IF('H1'!E14="","",'H1'!E14) -> 54 | X14: 0.09660107335 | Y14: =IF('H1'!E15="","",'H1'!E15) -> 250 | AA14: 0.4472271914
B15: J1 | C15: - | D15: René Rücklin | E15: S | G15: =IF('J1'!$E7="","",'J1'!$E7) -> 597 | I15: =IF('J1'!$E9="","",'J1'!$E9) -> 282 | K15: 0.472361809 | L15: =IF('J1'!$E10="","",'J1'!$E10) -> 9 | N15: =IF('J1'!$E11="","",'J1'!$E11) -> 273 | P15: =IF('J1'!$E12="","",'J1'!$E12) -> 50 | R15: 0.1831501832 | S15: =IF('J1'!$E13="","",'J1'!$E13) -> 98 | U15: 0.358974359 | V15: =IF('J1'!E14="","",'J1'!E14) -> 30 | X15: 0.1098901099 | Y15: =IF('J1'!E15="","",'J1'!E15) -> 95 | AA15: 0.347985348
B16: J2 | C16: - | D16: René Rücklin | E16: S | G16: =IF('J2'!$E7="","",'J2'!$E7) -> 818 | I16: =IF('J2'!$E9="","",'J2'!$E9) -> 471 | K16: 0.575794621 | L16: =IF('J2'!$E10="","",'J2'!$E10) -> 28 | N16: =IF('J2'!$E11="","",'J2'!$E11) -> 443 | P16: =IF('J2'!$E12="","",'J2'!$E12) -> 47 | R16: 0.1060948081 | S16: =IF('J2'!$E13="","",'J2'!$E13) -> 148 | U16: 0.3340857788 | V16: =IF('J2'!E14="","",'J2'!E14) -> 40 | X16: 0.09029345372 | Y16: =IF('J2'!E15="","",'J2'!E15) -> 208 | AA16: 0.4695259594
B17: J3 | C17: - | D17: René Rücklin | E17: S | G17: =IF('J3'!$E7="","",'J3'!$E7) -> 562 | I17: =IF('J3'!$E9="","",'J3'!$E9) -> 297 | K17: 0.5284697509 | L17: =IF('J3'!$E10="","",'J3'!$E10) -> 22 | N17: =IF('J3'!$E11="","",'J3'!$E11) -> 275 | P17: =IF('J3'!$E12="","",'J3'!$E12) -> 30 | R17: 0.1090909091 | S17: =IF('J3'!$E13="","",'J3'!$E13) -> 116 | U17: 0.4218181818 | V17: =IF('J3'!E14="","",'J3'!E14) -> 33 | X17: 0.12 | Y17: =IF('J3'!E15="","",'J3'!E15) -> 96 | AA17: 0.3490909091
B19: Total Canton SUD | G19: =SUM(G$12:G$17) -> 4425 | I19: =SUM(I12:I17) -> 2475 | K19: =IF(I19=""," ",I19/$G19) -> 0.5593220339 | L19: =SUM(L12:L17) -> 135 | N19: =SUM(N12:N17) -> 2340 | P19: =SUM(P12:P17) -> 297 | R19: =IF(P19=0," ",P19/$N19) -> 0.1269230769 | S19: =SUM(S12:S17) -> 859 | U19: =IF(S19=0," ",S19/$N19) -> 0.3670940171 | V19: =SUM(V12:V17) -> 239 | X19: =IF(V19=0," ",V19/$N19) -> 0.1021367521 | Y19: =SUM(Y12:Y17) -> 945 | AA19: =IF(Y19=0," ",Y19/$N19) -> 0.4038461538
B22: % par rapport aux VOTANTS | L22: =IF(L19=0," ",L19/$I19) -> 0.05454545455 | N22: =IF(N19=0," ",N19/$I19) -> 0.9454545455
B23: % par rapport aux INSCRITS | L23: =IF(L19=""," ",L19/$G19) -> 0.03050847458 | N23: =IF(N19=""," ",N19/$G19) -> 0.5288135593 | P23: =IF(P19=""," ",P19/$G19) -> 0.06711864407 | S23: =IF(S19=""," ",S19/$G19) -> 0.1941242938 | V23: =IF(V19=""," ",V19/$G19) -> 0.05401129944 | Y23: =IF(Y19=""," ",Y19/$G19) -> 0.213559322

Sheet OUEST
A1: CANTON OUEST
P8: =Candidats!A2 -> Marc | S8: =Candidats!A3 -> Étienne | V8: =Candidats!A4 -> Bastien | Y8: =Candidats!A5 -> Damien
D9: BUREAUX | G9: Inscrits | I9: Votants | K9: Particip. | L9: Nuls | N9: Exprimés | P9: =Candidats!B2 -> ARCHAMBAULT | R9: % | S9: =Candidats!B3 -> BUTZBACH | U9: % | V9: =Candidats!B4 -> FAUDOT | X9: % | Y9: =Candidats!B5 -> MESLOT | AA9: %
B12: K1 | C12: - | D12: Louis Pergaud | E12: O | G12: =IF('K1'!$E7="","",'K1'!$E7) -> 958 | I12: =IF('K1'!$E9="","",'K1'!$E9) -> 500 | K12: =IF(I12=""," ",I12/$G12) -> 0.5219206681 | L12: =IF('K1'!$E10="","",'K1'!$E10) -> 23 | N12: =IF('K1'!$E11="","",'K1'!$E11) -> 477 | P12: =IF('K1'!$E12="","",'K1'!$E12) -> 43 | R12: =IF(P12=""," ",P12/$N12) -> 0.09014675052 | S12: =IF('K1'!$E13="","",'K1'!$E13) -> 208 | U12: =IF(S12=""," ",S12/$N12) -> 0.4360587002 | V12: =IF('K1'!E14="","",'K1'!E14) -> 37 | X12: =IF(V12=""," ",V12/$N12) -> 0.07756813417 | Y12: =IF('K1'!E15="","",'K1'!E15) -> 189 | AA12: =IF(Y12=""," ",Y12/$N12) -> 0.3962264151
B13: K2 | C13: - | D13: Louis Pergaud | E13: O | G13: =IF('K2'!$E7="","",'K2'!$E7) -> 789 | I13: =IF('K2'!$E9="","",'K2'!$E9) -> 444 | K13: =IF(I13=""," ",I13/$G13) -> 0.5627376426 | L13: =IF('K2'!$E10="","",'K2'!$E10) -> 14 | N13: =IF('K2'!$E11="","",'K2'!$E11) -> 430 | P13: =IF('K2'!$E12="","",'K2'!$E12) -> 47 | R13: =IF(P13=""," ",P13/$N13) -> 0.1093023256 | S13: =IF('K2'!$E13="","",'K2'!$E13) -> 185 | U13: =IF(S13=""," ",S13/$N13) -> 0.4302325581 | V13: =IF('K2'!E14="","",'K2'!E14) -> 24 | X13: =IF(V13=""," ",V13/$N13) -> 0.05581395349 | Y13: =IF('K2'!E15="","",'K2'!E15) -> 174 | AA13: =IF(Y13=""," ",Y13/$N13) -> 0.4046511628
B14: L1 | C14: - | D14: Les Barres - Maternelle | E14: O | G14: =IF('L1'!$E7="","",'L1'!$E7) -> 1336 | I14: =IF('L1'!$E9="","",'L1'!$E9) -> 759 | K14: =IF(I14=""," ",I14/$G14) -> 0.5681137725 | L14: =IF('L1'!$E10="","",'L1'!$E10) -> 27 | N14: =IF('L1'!$E11="","",'L1'!$E11) -> 732 | P14: =IF('L1'!$E12="","",'L1'!$E12) -> 97 | R14: =IF(P14=""," ",P14/$N14) -> 0.1325136612 | S14: =IF('L1'!$E13="","",'L1'!$E13) -> 218 | U14: =IF(S14=""," ",S14/$N14) -> 0.2978142077 | V14: =IF('L1'!E14="","",'L1'!E14) -> 116 | X14: =IF(V14=""," ",V14/$N14) -> 0.1584699454 | Y14: =IF('L1'!E15="","",'L1'!E15) -> 301 | AA14: =IF(Y14=""," ",Y14/$N14) -> 0.4112021858
B15: L2 | C15: - | D15: Les Barres - Primaire | E15: O | G15: =IF('L2'!$E7="","",'L2'!$E7) -> 1154 | I15: =IF('L2'!$E9="","",'L2'!$E9) -> 727 | K15: =IF(I15=""," ",I15/$G15) -> 0.629982669 | L15: =IF('L2'!$E10="","",'L2'!$E10) -> 40 | N15: =IF('L2'!$E11="","",'L2'!$E11) -> 687 | P15: =IF('L2'!$E12="","",'L2'!$E12) -> 104 | R15: =IF(P15=""," ",P15/$N15) -> 0.1513828239 | S15: =IF('L2'!$E13="","",'L2'!$E13) -> 219 | U15: =IF(S15=""," ",S15/$N15) -> 0.3187772926 | V15: =IF('L2'!E14="","",'L2'!E14) -> 81 | X15: =IF(V15=""," ",V15/$N15) -> 0.1179039301 | Y15: =IF('L2'!E15="","",'L2'!E15) -> 283 | AA15: =IF(Y15=""," ",Y15/$N15) -> 0.4119359534
B17: Total Canton OUEST | G17: =SUM(G$12:G$15) -> 4237 | I17: =SUM(I12:I15) -> 2430 | K17: =IF(I17=""," ",I17/$G17) -> 0.5735189993 | L17: =SUM(L12:L15) -> 104 | N17: =SUM(N12:N15) -> 2326 | P17: =SUM(P12:P15) -> 291 | R17: =IF(P17=0," ",P17/$N17) -> 0.1251074807 | S17: =SUM(S12:S15) -> 830 | U17: =IF(S17=0," ",S17/$N17) -> 0.3568357696 | V17: =SUM(V12:V15) -> 258 | X17: =IF(V17=0," ",V17/$N17) -> 0.1109200344 | Y17: =SUM(Y12:Y15) -> 947 | AA17: =IF(Y17=0," ",Y17/$N17) -> 0.4071367154
B20: % par rapport aux VOTANTS | L20: =IF(L17=0," ",L17/$I17) -> 0.04279835391 | N20: =IF(N17=0," ",N17/$I17) -> 0.9572016461
B21: % par rapport aux INSCRITS | L21: =IF(L17=""," ",L17/$G17) -> 0.02454566911 | N21: =IF(N17=""," ",N17/$G17) -> 0.5489733302 | P21: =IF(P17=""," ",P17/$G17) -> 0.06868067029 | S21: =IF(S17=""," ",S17/$G17) -> 0.1958933207 | V21: =IF(V17=""," ",V17/$G17) -> 0.06089214067 | Y21: =IF(Y17=""," ",Y17/$G17) -> 0.2235071985

Sheet RESULTATS
G1: ÉLECTIONS MUNICIPALES | AD1: 2014-03-30
A2: RÉSULTATS
A3: du 2ème tour | Q3: =COUNTIF($I$12:$I$18,">0")+COUNTIF($I$20:$I$25,">0")+COUNTIF($I$27:$I$31,">0")+COUNTIF($I$33:$I$38,">0")+COUNTIF($I$40:$I$43,">0") -> 28 | S3: Bureaux sur | U3: 28
Q5: =SUMIF($I$12:$I$18,">0",$E$12:$E$18)+SUMIF($I$20:$I$25,">0",$E$20:$E$25)+SUMIF($I$27:$I$31,">0",$E$27:$E$31)+SUMIF($I$33:$I$38,">0",$E$33:$E$38)+SUMIF($I$40:$I$43,">0",$E$40:$E$43) -> 26935 | S5: Inscrits sur | U5: =$E$47 -> 26935 | V5: soit | W5: : | X5: =Q5/U5 -> 1
S8: % / | U8: =Candidats!A2 -> Marc | X8: =Candidats!A3 -> Étienne | AA8: =Candidats!A4 -> Bastien | AD8: =Candidats!A5 -> Damien
D9: BUREAUX | E9: Inscrits | G9: Émargements | I9: Votants | K9: Abstentions | M9: Participation | O9: Nuls | Q9: Exprimés | S9: Inscrits | U9: =Candidats!B2 -> ARCHAMBAULT | W9: % | X9: =Candidats!B3 -> BUTZBACH | Z9: % | AA9: =Candidats!B4 -> FAUDOT | AC9: % | AD9: =Candidats!B5 -> MESLOT | AF9: %
B12: A1 - Hôtel de Ville | E12: =IF('A1'!$E7="","",'A1'!$E7) -> 949 | G12: =IF('A1'!$E8="","",'A1'!$E8) -> 516 | I12: =IF('A1'!$E9="","",'A1'!$E9) -> 516 | K12: =IF(G12<>"",E12-I12,"") -> 433 | M12: =IF(I12=""," ",I12/$E12) -> 0.5437302424 | O12: =IF('A1'!$E10="","",'A1'!$E10) -> 11 | Q12: =IF('A1'!$E11="","",'A1'!$E11) -> 505 | S12: =IF(Q12="","",Q12/$E12) -> 0.5321390938 | U12: =IF('A1'!$E12="","",'A1'!$E12) -> 22 | W12: =IF(U12="","",U12/$Q12) -> 0.04356435644 | X12: =IF('A1'!$E13="","",'A1'!$E13) -> 172 | Z12: =IF(X12="","",X12/$Q12) -> 0.3405940594 | AA12: =IF('A1'!$E14="","",'A1'!$E14) -> 59 | AC12: =IF(AA12="","",AA12/$Q12) -> 0.1168316832 | AD12: =IF('A1'!$E15="","",'A1'!$E15) -> 252 | AF12: =IF(AD12="","",AD12/$Q12) -> 0.499009901
B13: A2 - Salle des fêtes | E13: =IF('A2'!$E7="","",'A2'!$E7) -> 955 | G13: =IF('A2'!$E8="","",'A2'!$E8) -> 619 | I13: =IF('A2'!$E9="","",'A2'!$E9) -> 619 | K13: =IF(G13<>"",E13-I13,"") -> 336 | M13: =IF(I13=""," ",I13/$E13) -> 0.6481675393 | O13: =IF('A2'!$E10="","",'A2'!$E10) -> 31 | Q13: =IF('A2'!$E11="","",'A2'!$E11) -> 588 | S13: =IF(Q13="","",Q13/$E13) -> 0.6157068063 | U13: =IF('A2'!$E12="","",'A2'!$E12) -> 35 | W13: 0.05952380952 | X13: =IF('A2'!$E13="","",'A2'!$E13) -> 147 | Z13: 0.25 | AA13: =IF('A2'!E14="","",'A2'!E14) -> 69 | AC13: 0.1173469388 | AD13: =IF('A2'!E15="","",'A2'!E15) -> 337 | AF13: 0.5731292517
B14: B1 - Victor Hugo | E14: =IF('B1'!$E7="","",'B1'!$E7) -> 1096 | G14: =IF('B1'!$E8="","",'B1'!$E8) -> 622 | I14: =IF('B1'!$E9="","",'B1'!$E9) -> 622 | K14: 474 | M14: 0.5675182482 | O14: =IF('B1'!$E10="","",'B1'!$E10) -> 16 | Q14: =IF('B1'!$E11="","",'B1'!$E11) -> 606 | S14: =IF(Q14=""," ",Q14/$E14) -> 0.552919708 | U14: =IF('B1'!$E12="","",'B1'!$E12) -> 36 | W14: 0.05940594059 | X14: =IF('B1'!$E13="","",'B1'!$E13) -> 187 | Z14: 0.3085808581 | AA14: =IF('B1'!E14="","",'B1'!E14) -> 62 | AC14: 0.102310231 | AD14: =IF('B1'!E15="","",'B1'!E15) -> 321 | AF14: 0.5297029703
B15: B2 - Victor Hugo | E15: =IF('B2'!$E7="","",'B2'!$E7) -> 1167 | G15: =IF('B2'!$E8="","",'B2'!$E8) -> 734 | I15: =IF('B2'!$E9="","",'B2'!$E9) -> 734 | K15: 433 | M15: 0.6289631534 | O15: =IF('B2'!$E10="","",'B2'!$E10) -> 36 | Q15: =IF('B2'!$E11="","",'B2'!$E11) -> 698 | S15: 0.5981148243 | U15: =IF('B2'!$E12="","",'B2'!$E12) -> 64 | W15: 0.09169054441 | X15: =IF('B2'!$E13="","",'B2'!$E13) -> 201 | Z15: 0.287965616 | AA15: =IF('B2'!E14="","",'B2'!E14) -> 70 | AC15: 0.100286533 | AD15: =IF('B2'!E15="","",'B2'!E15) -> 363 | AF15: 0.5200573066
B16: M1 - Saint-Exupéry | E16: =IF('M1'!$E7="","",'M1'!$E7) -> 1306 | G16: =IF('M1'!$E8="","",'M1'!$E8) -> 656 | I16: =IF('M1'!$E9="","",'M1'!$E9) -> 656 | K16: 650 | M16: 0.5022970904 | O16: =IF('M1'!$E10="","",'M1'!$E10) -> 29 | Q16: =IF('M1'!$E11="","",'M1'!$E11) -> 627 | S16: 0.4800918836 | U16: =IF('M1'!$E12="","",'M1'!$E12) -> 52 | W16: 0.08293460925 | X16: =IF('M1'!$E13="","",'M1'!$E13) -> 347 | Z16: 0.5534290271 | AA16: =IF('M1'!E14="","",'M1'!E14) -> 37 | AC16: 0.05901116427 | AD16: =IF('M1'!E15="","",'M1'!E15) -> 191 | AF16: 0.3046251994
B17: N1 - Jean Moulin | E17: =IF('N1'!$E7="","",'N1'!$E7) -> 1456 | G17: =IF('N1'!$E8="","",'N1'!$E8) -> 833 | I17: =IF('N1'!$E9="","",'N1'!$E9) -> 833 | K17: 623 | M17: 0.5721153846 | O17: =IF('N1'!$E10="","",'N1'!$E10) -> 47 | Q17: =IF('N1'!$E11="","",'N1'!$E11) -> 786 | S17: 0.5398351648 | U17: =IF('N1'!$E12="","",'N1'!$E12) -> 101 | W17: 0.1284987277 | X17: =IF('N1'!$E13="","",'N1'!$E13) -> 221 | Z17: 0.2811704835 | AA17: =IF('N1'!E14="","",'N1'!E14) -> 84 | AC17: 0.106870229 | AD17: =IF('N1'!E15="","",'N1'!E15) -> 380 | AF17: 0.4834605598
B18: N2 - Cité des Associations | E18: =IF('N2'!$E7="","",'N2'!$E7) -> 904 | G18: =IF('N2'!$E8="","",'N2'!$E8) -> 590 | I18: =IF('N2'!$E9="","",'N2'!$E9) -> 590 | K18: 314 | M18: 0.6526548673 | O18: =IF('N2'!$E10="","",'N2'!$E10) -> 26 | Q18: =IF('N2'!$E11="","",'N2'!$E11) -> 564 | S18: 0.6238938053 | U18: =IF('N2'!$E12="","",'N2'!$E12) -> 42 | W18: 0.07446808511 | X18: =IF('N2'!$E13="","",'N2'!$E13) -> 211 | Z18: 0.3741134752 | AA18: =IF('N2'!E14="","",'N2'!E14) -> 66 | AC18: 0.1170212766 | AD18: =IF('N2'!E15="","",'N2'!E15) -> 245 | AF18: 0.4343971631
B19: Canton EST | E19: =SUM(E$12:E$18) -> 7833 | G19: =SUM(G12:G18) -> 4570 | I19: =SUM(I12:I18) -> 4570 | K19: =SUM(K12:K18) -> 3263 | M19: 0.5834290821 | O19: =SUM(O12:O18) -> 196 | Q19: =SUM(Q12:Q18) -> 4374 | S19: 0.5584067407 | U19: =SUM(U12:U18) -> 352 | W19: =IF(U19=0,"",U19/$Q19) -> 0.08047553727 | X19: =SUM(X12:X18) -> 1486 | Z19: =IF(X19=0,"",X19/$Q19) -> 0.3397347965 | AA19: =SUM(AA12:AA18) -> 447 | AC19: =IF(AA19=0,"",AA19/$Q19) -> 0.1021947874 | AD19: =SUM(AD12:AD18) -> 2089 | AF19: =IF(AD19=0,"",AD19/$Q19) -> 0.4775948788
B20: C1 - Schoelcher | E20: =IF('C1'!$E7="","",'C1'!$E7) -> 1209 | G20: =IF('C1'!$E8="","",'C1'!$E8) -> 724 | I20: =IF('C1'!$E9="","",'C1'!$E9) -> 724 | K20: 485 | M20: 0.5988420182 | O20: =IF('C1'!$E10="","",'C1'!$E10) -> 27 | Q20: =IF('C1'!$E11="","",'C1'!$E11) -> 697 | S20: 0.576509512 | U20: =IF('C1'!$E12="","",'C1'!$E12) -> 44 | W20: =IF(U20="","",U20/$Q20) -> 0.0631276901 | X20: =IF('C1'!$E13="","",'C1'!$E13) -> 210 | Z20: =IF(X20="","",X20/$Q20) -> 0.3012912482 | AA20: =IF('C1'!E14="","",'C1'!E14) -> 70 | AC20: =IF(AA20="","",AA20/$Q20) -> 0.1004304161 | AD20: =IF('C1'!E15="","",'C1'!E15) -> 373 | AF20: =IF(AD20="","",AD20/$Q20) -> 0.5351506456
B21: C2 - Maison du Peuple | E21: =IF('C2'!$E7="","",'C2'!$E7) -> 762 | G21: =IF('C2'!$E8="","",'C2'!$E8) -> 481 | I21: =IF('C2'!$E9="","",'C2'!$E9) -> 481 | K21: 281 | M21: 0.6312335958 | O21: =IF('C2'!$E10="","",'C2'!$E10) -> 19 | Q21: =IF('C2'!$E11="","",'C2'!$E11) -> 462 | S21: 0.6062992126 | U21: =IF('C2'!$E12="","",'C2'!$E12) -> 32 | W21: 0.06926406926 | X21: =IF('C2'!$E13="","",'C2'!$E13) -> 126 | Z21: 0.2727272727 | AA21: =IF('C2'!E14="","",'C2'!E14) -> 42 | AC21: 0.09090909091 | AD21: =IF('C2'!E15="","",'C2'!E15) -> 262 | AF21: 0.5670995671
B22: C3 - Maison du Peuple | E22: =IF('C3'!$E7="","",'C3'!$E7) -> 921 | G22: =IF('C3'!$E8="","",'C3'!$E8) -> 573 | I22: =IF('C3'!$E9="","",'C3'!$E9) -> 573 | K22: 348 | M22: 0.6221498371 | O22: =IF('C3'!$E10="","",'C3'!$E10) -> 16 | Q22: =IF('C3'!$E11="","",'C3'!$E11) -> 557 | S22: 0.6047774159 | U22: =IF('C3'!$E12="","",'C3'!$E12) -> 29 | W22: 0.05206463196 | X22: =IF('C3'!$E13="","",'C3'!$E13) -> 154 | Z22: 0.276481149 | AA22: =IF('C3'!E14="","",'C3'!E14) -> 41 | AC22: 0.07360861759 | AD22: =IF('C3'!E15="","",'C3'!E15) -> 333 | AF22: 0.5978456014
B23: D1 - Châteaudun | E23: =IF('D1'!$E7="","",'D1'!$E7) -> 1074 | G23: =IF('D1'!$E8="","",'D1'!$E8) -> 638 | I23: =IF('D1'!$E9="","",'D1'!$E9) -> 638 | K23: 436 | M23: 0.5940409683 | O23: =IF('D1'!$E10="","",'D1'!$E10) -> 27 | Q23: =IF('D1'!$E11="","",'D1'!$E11) -> 611 | S23: 0.5689013035 | U23: =IF('D1'!$E12="","",'D1'!$E12) -> 53 | W23: 0.08674304419 | X23: =IF('D1'!$E13="","",'D1'!$E13) -> 152 | Z23: 0.2487725041 | AA23: =IF('D1'!E14="","",'D1'!E14) -> 48 | AC23: 0.07855973813 | AD23: =IF('D1'!E15="","",'D1'!E15) -> 358 | AF23: 0.5859247136
B24: D2 - Châteaudun | E24: =IF('D2'!$E7="","",'D2'!$E7) -> 838 | G24: =IF('D2'!$E8="","",'D2'!$E8) -> 501 | I24: =IF('D2'!$E9="","",'D2'!$E9) -> 501 | K24: 337 | M24: 0.5978520286 | O24: =IF('D2'!$E10="","",'D2'!$E10) -> 26 | Q24: =IF('D2'!$E11="","",'D2'!$E11) -> 475 | S24: 0.5668257757 | U24: =IF('D2'!$E12="","",'D2'!$E12) -> 44 | W24: 0.09263157895 | X24: =IF('D2'!$E13="","",'D2'!$E13) -> 112 | Z24: 0.2357894737 | AA24: =IF('D2'!E14="","",'D2'!E14) -> 52 | AC24: 0.1094736842 | AD24: =IF('D2'!E15="","",'D2'!E15) -> 267 | AF24: 0.5621052632
B25: D3 - Châteaudun | E25: =IF('D3'!$E7="","",'D3'!$E7) -> 912 | G25: =IF('D3'!$E8="","",'D3'!$E8) -> 559 | I25: =IF('D3'!$E9="","",'D3'!$E9) -> 559 | K25: 353 | M25: 0.6129385965 | O25: =IF('D3'!$E10="","",'D3'!$E10) -> 30 | Q25: =IF('D3'!$E11="","",'D3'!$E11) -> 529 | S25: 0.5800438596 | U25: =IF('D3'!$E12="","",'D3'!$E12) -> 74 | W25: 0.1398865784 | X25: =IF('D3'!$E13="","",'D3'!$E13) -> 129 | Z25: 0.2438563327 | AA25: =IF('D3'!E14="","",'D3'!E14) -> 47 | AC25: 0.08884688091 | AD25: =IF('D3'!E15="","",'D3'!E15) -> 279 | AF25: 0.5274102079
B26: Canton CENTRE | E26: =SUM(E$20:E$25) -> 5716 | G26: =SUM(G20:G25) -> 3476 | I26: =SUM(I20:I25) -> 3476 | K26: =SUM(K20:K25) -> 2240 | M26: 0.6081175647 | O26: =SUM(O20:O25) -> 145 | Q26: =SUM(Q20:Q25) -> 3331 | S26: 0.5827501749 | U26: =SUM(U20:U25) -> 276 | W26: =IF(U26=0,"",U26/$Q26) -> 0.0828580006 | X26: =SUM(X20:X25) -> 883 | Z26: =IF(X26=0,"",X26/$Q26) -> 0.2650855599 | AA26: =SUM(AA20:AA25) -> 300 | AC26: =IF(AA26=0,"",AA26/$Q26) -> 0.09006304413 | AD26: =SUM(AD20:AD25) -> 1872 | AF26: =IF(AD26=0,"",AD26/$Q26) -> 0.5619933954
B27: E1 - Raymond Aubert | E27: =IF('E1'!E$7="","",'E1'!E$7) -> 1178 | G27: =IF('E1'!$E8="","",'E1'!$E8) -> 674 | I27: =IF('E1'!$E9="","",'E1'!$E9) -> 674 | K27: 504 | M27: 0.5721561969 | O27: =IF('E1'!$E10="","",'E1'!$E10) -> 28 | Q27: =IF('E1'!$E11="","",'E1'!$E11) -> 646 | S27: 0.5483870968 | U27: =IF('E1'!$E12="","",'E1'!$E12) -> 86 | W27: =IF(U27="","",U27/$Q27) -> 0.133126935 | X27: =IF('E1'!$E13="","",'E1'!$E13) -> 142 | Z27: =IF(X27="","",X27/$Q27) -> 0.2198142415 | AA27: =IF('E1'!E14="","",'E1'!E14) -> 76 | AC27: =IF(AA27="","",AA27/$Q27) -> 0.1176470588 | AD27: =IF('E1'!E15="","",'E1'!E15) -> 342 | AF27: =IF(AD27="","",AD27/$Q27) -> 0.5294117647
B28: E2 - Raymond Aubert | E28: =IF('E2'!$E7="","",'E2'!$E7) -> 1212 | G28: =IF('E2'!$E8="","",'E2'!$E8) -> 696 | I28: =IF('E2'!$E9="","",'E2'!$E9) -> 696 | K28: 516 | M28: 0.5742574257 | O28: =IF('E2'!$E10="","",'E2'!$E10) -> 31 | Q28: =IF('E2'!$E11="","",'E2'!$E11) -> 665 | S28: 0.548679868 | U28: =IF('E2'!$E12="","",'E2'!$E12) -> 91 | W28: =IF(U28="","",U28/$Q28) -> 0.1368421053 | X28: =IF('E2'!$E13="","",'E2'!$E13) -> 167 | Z28: =IF(X28="","",X28/$Q28) -> 0.2511278195 | AA28: =IF('E2'!E14="","",'E2'!E14) -> 64 | AC28: =IF(AA28="","",AA28/$Q28) -> 0.0962406015 | AD28: =IF('E2'!E15="","",'E2'!E15) -> 343 | AF28: =IF(AD28="","",AD28/$Q28) -> 0.5157894737
B29: E3 - Raymond Aubert | E29: =IF('E3'!$E7="","",'E3'!$E7) -> 1037 | G29: =IF('E3'!$E8="","",'E3'!$E8) -> 598 | I29: =IF('E3'!$E9="","",'E3'!$E9) -> 600 | K29: 437 | M29: 0.5785920926 | O29: =IF('E3'!$E10="","",'E3'!$E10) -> 30 | Q29: =IF('E3'!$E11="","",'E3'!$E11) -> 570 | S29: 0.5496624879 | U29: =IF('E3'!$E12="","",'E3'!$E12) -> 76 | W29: =IF(U29="","",U29/$Q29) -> 0.1333333333 | X29: =IF('E3'!$E13="","",'E3'!$E13) -> 174 | Z29: =IF(X29="","",X29/$Q29) -> 0.3052631579 | AA29: =IF('E3'!E14="","",'E3'!E14) -> 64 | AC29: =IF(AA29="","",AA29/$Q29) -> 0.1122807018 | AD29: =IF('E3'!E15="","",'E3'!E15) -> 256 | AF29: =IF(AD29="","",AD29/$Q29) -> 0.449122807
B30: F1 - Maison de l'enfant | E30: =IF('F1'!$E7="","",'F1'!$E7) -> 776 | G30: =IF('F1'!$E8="","",'F1'!$E8) -> 476 | I30: =IF('F1'!$E9="","",'F1'!$E9) -> 476 | K30: 300 | M30: 0.6134020619 | O30: =IF('F1'!$E10="","",'F1'!$E10) -> 30 | Q30: =IF('F1'!$E11="","",'F1'!$E11) -> 446 | S30: 0.574742268 | U30: =IF('F1'!$E12="","",'F1'!$E12) -> 52 | W30: =IF(U30="","",U30/$Q30) -> 0.1165919283 | X30: =IF('F1'!$E13="","",'F1'!$E13) -> 144 | Z30: =IF(X30="","",X30/$Q30) -> 0.3228699552 | AA30: =IF('F1'!E14="","",'F1'!E14) -> 44 | AC30: =IF(AA30="","",AA30/$Q30) -> 0.09865470852 | AD30: =IF('F1'!E15="","",'F1'!E15) -> 206 | AF30: =IF(AD30="","",AD30/$Q30) -> 0.4618834081
B31: F2 - Émile Géhant | E31: =IF('F2'!$E7="","",'F2'!$E7) -> 521 | G31: =IF('F2'!$E8="","",'F2'!$E8) -> 295 | I31: =IF('F2'!$E9="","",'F2'!$E9) -> 295 | K31: 226 | M31: 0.56621881 | O31: =IF('F2'!$E10="","",'F2'!$E10) -> 19 | Q31: =IF('F2'!$E11="","",'F2'!$E11) -> 276 | S31: 0.5297504798 | U31: =IF('F2'!$E12="","",'F2'!$E12) -> 41 | W31: =IF(U31="","",U31/$Q31) -> 0.1485507246 | X31: =IF('F2'!$E13="","",'F2'!$E13) -> 101 | Z31: =IF(X31="","",X31/$Q31) -> 0.365942029 | AA31: =IF('F2'!E14="","",'F2'!E14) -> 38 | AC31: =IF(AA31="","",AA31/$Q31) -> 0.1376811594 | AD31: =IF('F2'!E15="","",'F2'!E15) -> 96 | AF31: =IF(AD31="","",AD31/$Q31) -> 0.347826087
B32: Canton NORD | E32: =SUM(E$27:E$31) -> 4724 | G32: =SUM(G27:G31) -> 2739 | I32: =SUM(I27:I31) -> 2741 | K32: =SUM(K27:K31) -> 1983 | M32: 0.5802286198 | O32: =SUM(O27:O31) -> 138 | Q32: =SUM(Q27:Q31) -> 2603 | S32: 0.5510160881 | U32: =SUM(U27:U31) -> 346 | W32: =IF(U32=0,"",U32/$Q32) -> 0.1329235498 | X32: =SUM(X27:X31) -> 728 | Z32: =IF(X32=0,"",X32/$Q32) -> 0.2796772954 | AA32: =SUM(AA27:AA31) -> 286 | AC32: =IF(AA32=0,"",AA32/$Q32) -> 0.1098732232 | AD32: =SUM(AD27:AD31) -> 1243 | AF32: =IF(AD32=0,"",AD32/$Q32) -> 0.4775259316
B33: G1 - Hubert Metzger | E33: =IF('G1'!$E7="","",'G1'!$E7) -> 653 | G33: =IF('G1'!$E8="","",'G1'!$E8) -> 416 | I33: =IF('G1'!$E9="","",'G1'!$E9) -> 416 | K33: 237 | M33: 0.6370597243 | O33: =IF('G1'!$E10="","",'G1'!$E10) -> 25 | Q33: =IF('G1'!$E11="","",'G1'!$E11) -> 391 | S33: 0.5987748851 | U33: =IF('G1'!$E12="","",'G1'!$E12) -> 50 | W33: =IF(U33="","",U33/$Q33) -> 0.1278772379 | X33: =IF('G1'!$E13="","",'G1'!$E13) -> 144 | Z33: =IF(X33="","",X33/$Q33) -> 0.368286445 | AA33: =IF('G1'!E14="","",'G1'!E14) -> 48 | AC33: =IF(AA33="","",AA33/$Q33) -> 0.1227621483 | AD33: =IF('G1'!E15="","",'G1'!E15) -> 149 | AF33: =IF(AD33="","",AD33/$Q33) -> 0.3810741688
B34: G2 - Hubert Metzger | E34: =IF('G2'!$E7="","",'G2'!$E7) -> 754 | G34: =IF('G2'!$E8="","",'G2'!$E8) -> 425 | I34: =IF('G2'!$E9="","",'G2'!$E9) -> 425 | K34: 329 | M34: 0.5636604775 | O34: =IF('G2'!$E10="","",'G2'!$E10) -> 26 | Q34: =IF('G2'!$E11="","",'G2'!$E11) -> 399 | S34: 0.5291777188 | U34: =IF('G2'!$E12="","",'G2'!$E12) -> 55 | W34: 0.1378446115 | X34: =IF('G2'!$E13="","",'G2'!$E13) -> 163 | Z34: 0.4085213033 | AA34: =IF('G2'!E14="","",'G2'!E14) -> 34 | AC34: 0.08521303258 | AD34: =IF('G2'!E15="","",'G2'!E15) -> 147 | AF34: 0.3684210526
B35: H1 - Léonard de Vinci | E35: =IF('H1'!$E7="","",'H1'!$E7) -> 1041 | G35: =IF('H1'!$E8="","",'H1'!$E8) -> 585 | I35: =IF('H1'!$E9="","",'H1'!$E9) -> 584 | K35: 457 | M35: 0.5609990394 | O35: =IF('H1'!$E10="","",'H1'!$E10) -> 25 | Q35: =IF('H1'!$E11="","",'H1'!$E11) -> 559 | S35: 0.5369836695 | U35: =IF('H1'!$E12="","",'H1'!$E12) -> 65 | W35: 0.1162790698 | X35: =IF('H1'!$E13="","",'H1'!$E13) -> 190 | Z35: 0.3398926655 | AA35: =IF('H1'!E14="","",'H1'!E14) -> 54 | AC35: 0.09660107335 | AD35: =IF('H1'!E15="","",'H1'!E15) -> 250 | AF35: 0.4472271914
B36: J1 - René Rücklin | E36: =IF('J1'!$E7="","",'J1'!$E7) -> 597 | G36: =IF('J1'!$E8="","",'J1'!$E8) -> 282 | I36: =IF('J1'!$E9="","",'J1'!$E9) -> 282 | K36: 315 | M36: 0.472361809 | O36: =IF('J1'!$E10="","",'J1'!$E10) -> 9 | Q36: =IF('J1'!$E11="","",'J1'!$E11) -> 273 | S36: 0.4572864322 | U36: =IF('J1'!$E12="","",'J1'!$E12) -> 50 | W36: 0.1831501832 | X36: =IF('J1'!$E13="","",'J1'!$E13) -> 98 | Z36: 0.358974359 | AA36: =IF('J1'!E14="","",'J1'!E14) -> 30 | AC36: 0.1098901099 | AD36: =IF('J1'!E15="","",'J1'!E15) -> 95 | AF36: 0.347985348
B37: J2 - René Rücklin | E37: =IF('J2'!$E7="","",'J2'!$E7) -> 818 | G37: =IF('J2'!$E8="","",'J2'!$E8) -> 471 | I37: =IF('J2'!$E9="","",'J2'!$E9) -> 471 | K37: 347 | M37: 0.575794621 | O37: =IF('J2'!$E10="","",'J2'!$E10) -> 28 | Q37: =IF('J2'!$E11="","",'J2'!$E11) -> 443 | S37: 0.5415647922 | U37: =IF('J2'!$E12="","",'J2'!$E12) -> 47 | W37: 0.1060948081 | X37: =IF('J2'!$E13="","",'J2'!$E13) -> 148 | Z37: 0.3340857788 | AA37: =IF('J2'!E14="","",'J2'!E14) -> 40 | AC37: 0.09029345372 | AD37: =IF('J2'!E15="","",'J2'!E15) -> 208 | AF37: 0.4695259594
B38: J3 - René Rücklin | E38: =IF('J3'!$E7="","",'J3'!$E7) -> 562 | G38: =IF('J3'!$E8="","",'J3'!$E8) -> 297 | I38: =IF('J3'!$E9="","",'J3'!$E9) -> 297 | K38: 265 | M38: 0.5284697509 | O38: =IF('J3'!$E10="","",'J3'!$E10) -> 22 | Q38: =IF('J3'!$E11="","",'J3'!$E11) -> 275 | S38: 0.4893238434 | U38: =IF('J3'!$E12="","",'J3'!$E12) -> 30 | W38: 0.1090909091 | X38: =IF('J3'!$E13="","",'J3'!$E13) -> 116 | Z38: 0.4218181818 | AA38: =IF('J3'!E14="","",'J3'!E14) -> 33 | AC38: 0.12 | AD38: =IF('J3'!E15="","",'J3'!E15) -> 96 | AF38: 0.3490909091
B39: Canton SUD | E39: =SUM(E$33:E$38) -> 4425 | G39: =SUM(G33:G38) -> 2476 | I39: =SUM(I33:I38) -> 2475 | K39: =SUM(K33:K38) -> 1950 | M39: 0.5593220339 | O39: =SUM(O33:O38) -> 135 | Q39: =SUM(Q33:Q38) -> 2340 | S39: 0.5288135593 | U39: =SUM(U33:U38) -> 297 | W39: =IF(U39=0,"",U39/$Q39) -> 0.1269230769 | X39: =SUM(X33:X38) -> 859 | Z39: =IF(X39=0,"",X39/$Q39) -> 0.3670940171 | AA39: =SUM(AA33:AA38) -> 239 | AC39: =IF(AA39=0,"",AA39/$Q39) -> 0.1021367521 | AD39: =SUM(AD33:AD38) -> 945 | AF39: =IF(AD39=0,"",AD39/$Q39) -> 0.4038461538
B40: K1 - Louis Pergaud | E40: =IF('K1'!$E7="","",'K1'!$E7) -> 958 | G40: =IF('K1'!$E8="","",'K1'!$E8) -> 500 | I40: =IF('K1'!$E9="","",'K1'!$E9) -> 500 | K40: 458 | M40: 0.5219206681 | O40: =IF('K1'!$E10="","",'K1'!$E10) -> 23 | Q40: =IF('K1'!$E11="","",'K1'!$E11) -> 477 | S40: 0.4979123173 | U40: =IF('K1'!$E12="","",'K1'!$E12) -> 43 | W40: =IF(U40="","",U40/$Q40) -> 0.09014675052 | X40: =IF('K1'!$E13="","",'K1'!$E13) -> 208 | Z40: =IF(X40="","",X40/$Q40) -> 0.4360587002 | AA40: =IF('K1'!E14="","",'K1'!E14) -> 37 | AC40: =IF(AA40="","",AA40/$Q40) -> 0.07756813417 | AD40: =IF('K1'!E15="","",'K1'!E15) -> 189 | AF40: =IF(AD40="","",AD40/$Q40) -> 0.3962264151
B41: K2 - Louis Pergaud | E41: =IF('K2'!$E7="","",'K2'!$E7) -> 789 | G41: =IF('K2'!$E8="","",'K2'!$E8) -> 444 | I41: =IF('K2'!$E9="","",'K2'!$E9) -> 444 | K41: 345 | M41: 0.5627376426 | O41: =IF('K2'!$E10="","",'K2'!$E10) -> 14 | Q41: =IF('K2'!$E11="","",'K2'!$E11) -> 430 | S41: 0.5449936629 | U41: =IF('K2'!$E12="","",'K2'!$E12) -> 47 | W41: =IF(U41="","",U41/$Q41) -> 0.1093023256 | X41: =IF('K2'!$E13="","",'K2'!$E13) -> 185 | Z41: =IF(X41="","",X41/$Q41) -> 0.4302325581 | AA41: =IF('K2'!E14="","",'K2'!E14) -> 24 | AC41: =IF(AA41="","",AA41/$Q41) -> 0.05581395349 | AD41: =IF('K2'!E15="","",'K2'!E15) -> 174 | AF41: =IF(AD41="","",AD41/$Q41) -> 0.4046511628
B42: L1 - Les Barres | E42: =IF('L1'!$E7="","",'L1'!$E7) -> 1336 | G42: =IF('L1'!$E8="","",'L1'!$E8) -> 759 | I42: =IF('L1'!$E9="","",'L1'!$E9) -> 759 | K42: 577 | M42: 0.5681137725 | O42: =IF('L1'!$E10="","",'L1'!$E10) -> 27 | Q42: =IF('L1'!$E11="","",'L1'!$E11) -> 732 | S42: 0.5479041916 | U42: =IF('L1'!$E12="","",'L1'!$E12) -> 97 | W42: =IF(U42="","",U42/$Q42) -> 0.1325136612 | X42: =IF('L1'!$E13="","",'L1'!$E13) -> 218 | Z42: =IF(X42="","",X42/$Q42) -> 0.2978142077 | AA42: =IF('L1'!E14="","",'L1'!E14) -> 116 | AC42: =IF(AA42="","",AA42/$Q42) -> 0.1584699454 | AD42: =IF('L1'!E15="","",'L1'!E15) -> 301 | AF42: =IF(AD42="","",AD42/$Q42) -> 0.4112021858
B43: L2 - Les Barres | E43: =IF('L2'!$E7="","",'L2'!$E7) -> 1154 | G43: =IF('L2'!$E8="","",'L2'!$E8) -> 727 | I43: =IF('L2'!$E9="","",'L2'!$E9) -> 727 | K43: 427 | M43: 0.629982669 | O43: =IF('L2'!$E10="","",'L2'!$E10) -> 40 | Q43: =IF('L2'!$E11="","",'L2'!$E11) -> 687 | S43: 0.5953206239 | U43: =IF('L2'!$E12="","",'L2'!$E12) -> 104 | W43: =IF(U43="","",U43/$Q43) -> 0.1513828239 | X43: =IF('L2'!$E13="","",'L2'!$E13) -> 219 | Z43: =IF(X43="","",X43/$Q43) -> 0.3187772926 | AA43: =IF('L2'!E14="","",'L2'!E14) -> 81 | AC43: =IF(AA43="","",AA43/$Q43) -> 0.1179039301 | AD43: =IF('L2'!E15="","",'L2'!E15) -> 283 | AF43: =IF(AD43="","",AD43/$Q43) -> 0.4119359534
B44: Canton OUEST | E44: =SUM(E$40:E$43) -> 4237 | G44: =SUM(G40:G43) -> 2430 | I44: =SUM(I40:I43) -> 2430 | K44: =SUM(K40:K43) -> 1807 | M44: 0.5735189993 | O44: =SUM(O40:O43) -> 104 | Q44: =SUM(Q40:Q43) -> 2326 | S44: 0.5489733302 | U44: =SUM(U40:U43) -> 291 | W44: =IF(U44=0,"",U44/$Q44) -> 0.1251074807 | X44: =SUM(X40:X43) -> 830 | Z44: =IF(X44=0,"",X44/$Q44) -> 0.3568357696 | AA44: =SUM(AA40:AA43) -> 258 | AC44: =IF(AA44=0,"",AA44/$Q44) -> 0.1109200344 | AD44: =SUM(AD40:AD43) -> 947 | AF44: =IF(AD44=0,"",AD44/$Q44) -> 0.4071367154
B47: TOTAUX | E47: =E$19+E$26+E$32+E$39+E$44 -> 26935 | G47: =G$19+G$26+G$32+G$39+G$44 -> 15691 | I47: =I$19+I$26+I$32+I$39+I$44 -> 15692 | K47: =K$19+K$26+K$32+K$39+K$44 -> 11243 | M47: =IF(I47=""," ",I47/$E47) -> 0.5825877112 | O47: =O$19+O$26+O$32+O$39+O$44 -> 718 | Q47: =Q$19+Q$26+Q$32+Q$39+Q$44 -> 14974 | U47: =U$19+U$26+U$32+U$39+U$44 -> 1562 | W47: =IF(U47=0,"",U47/$Q47) -> 0.1043141445 | X47: =X$19+X$26+X$32+X$39+X$44 -> 4786 | Z47: =IF(X47=0,"",X47/$Q47) -> 0.3196206758 | AA47: =AA$19+AA$26+AA$32+AA$39+AA$44 -> 1530 | AC47: =IF(AA47=0,"",AA47/$Q47) -> 0.102177107 | AD47: =AD$19+AD$26+AD$32+AD$39+AD$44 -> 7096 | AF47: =IF(AD47=0,"",AD47/$Q47) -> 0.4738880727
B49: % / Inscrits | I49: =IF(I47=""," ",I47/$E47) -> 0.5825877112 | K49: =IF(K47=""," ",K47/$E47) -> 0.4174122888 | O49: =IF(I47=0,0,O47/E47) -> 0.02665676629 | Q49: =IF(I47=0,0,Q47/E47) -> 0.5559309449 | U49: =IF($Q$47=0,0,U47/$E$47) -> 0.05799146092 | X49: =IF($Q$47=0,0,X47/$E$47) -> 0.1776870243 | AA49: =IF($Q$47=0,0,AA47/$E$47) -> 0.05680341563 | AD49: =IF($Q$47=0,0,AD47/$E$47) -> 0.263449044
B50: Sièges | W50: ='REPART VdB 2T'!C56 -> 2 | Z50: ='REPART VdB 2T'!E56 -> 7 | AC50: ='REPART VdB 2T'!G56 -> 2 | AF50: ='REPART VdB 2T'!I56 -> 34

Sheet RECENS 2T
G3: R E C E N S E M E N T par B U R E A U
R8: =Candidats!A2 -> Marc | T8: =Candidats!A3 -> Étienne | V8: =Candidats!A4 -> Bastien | X8: =Candidats!A5 -> Damien
D9: BUREAUX | F9: Inscrits | H9: Émargements | J9: Abstentions | L9: Votants | N9: Nuls | P9: Exprimés | R9: =Candidats!B2 -> ARCHAMBAULT | T9: =Candidats!B3 -> BUTZBACH | V9: =Candidats!B4 -> FAUDOT | X9: =Candidats!B5 -> MESLOT
D10: 1 | F10: 2 | H10: 3 | J10: 4 | L10: 5 | N10: 6 | P10: 7 | R10: 8 | T10: 9 | V10: 10 | X10: 12
A13: A | B13: 01 | C13: - | D13: Hôtel de Ville | E13: E | F13: =RESULTATS!E12 -> 949 | H13: =RESULTATS!G12 -> 516 | J13: =RESULTATS!K12 -> 433 | L13: =RESULTATS!I12 -> 516 | N13: =RESULTATS!O12 -> 11 | P13: =RESULTATS!Q12 -> 505 | R13: =RESULTATS!U12 -> 22 | T13: =RESULTATS!X12 -> 172 | V13: =RESULTATS!AA12 -> 59 | X13: =RESULTATS!AD12 -> 252
A14: A | B14: 02 | C14: - | D14: Salle des fêtes | E14: E | F14: =RESULTATS!E13 -> 955 | H14: =RESULTATS!G13 -> 619 | J14: =RESULTATS!K13 -> 336 | L14: =RESULTATS!I13 -> 619 | N14: =RESULTATS!O13 -> 31 | P14: =RESULTATS!Q13 -> 588 | R14: =RESULTATS!U13 -> 35 | T14: =RESULTATS!X13 -> 147 | V14: =RESULTATS!AA13 -> 69 | X14: =RESULTATS!AD13 -> 337
A15: B | B15: 01 | C15: - | D15: Victor Hugo | E15: E | F15: =RESULTATS!E14 -> 1096 | H15: =RESULTATS!G14 -> 622 | J15: =RESULTATS!K14 -> 474 | L15: =RESULTATS!I14 -> 622 | N15: =RESULTATS!O14 -> 16 | P15: =RESULTATS!Q14 -> 606 | R15: =RESULTATS!U14 -> 36 | T15: =RESULTATS!X14 -> 187 | V15: =RESULTATS!AA14 -> 62 | X15: =RESULTATS!AD14 -> 321
A16: B | B16: 02 | C16: - | D16: Victor Hugo | E16: E | F16: =RESULTATS!E15 -> 1167 | H16: =RESULTATS!G15 -> 734 | J16: =RESULTATS!K15 -> 433 | L16: =RESULTATS!I15 -> 734 | N16: =RESULTATS!O15 -> 36 | P16: =RESULTATS!Q15 -> 698 | R16: =RESULTATS!U15 -> 64 | T16: =RESULTATS!X15 -> 201 | V16: =RESULTATS!AA15 -> 70 | X16: =RESULTATS!AD15 -> 363
A17: M | B17: 01 | C17: - | D17: Saint-Exupéry | E17: E | F17: =RESULTATS!E16 -> 1306 | H17: =RESULTATS!G16 -> 656 | J17: =RESULTATS!K16 -> 650 | L17: =RESULTATS!I16 -> 656 | N17: =RESULTATS!O16 -> 29 | P17: =RESULTATS!Q16 -> 627 | R17: =RESULTATS!U16 -> 52 | T17: =RESULTATS!X16 -> 347 | V17: =RESULTATS!AA16 -> 37 | X17: =RESULTATS!AD16 -> 191
A18: N | B18: 01 | C18: - | D18: Jean Moulin | E18: E | F18: =RESULTATS!E17 -> 1456 | H18: =RESULTATS!G17 -> 833 | J18: =RESULTATS!K17 -> 623 | L18: =RESULTATS!I17 -> 833 | N18: =RESULTATS!O17 -> 47 | P18: =RESULTATS!Q17 -> 786 | R18: =RESULTATS!U17 -> 101 | T18: =RESULTATS!X17 -> 221 | V18: =RESULTATS!AA17 -> 84 | X18: =RESULTATS!AD17 -> 380
A19: N | B19: 02 | C19: - | D19: Cité des Associations | E19: E | F19: =RESULTATS!E18 -> 904 | H19: =RESULTATS!G18 -> 590 | J19: =RESULTATS!K18 -> 314 | L19: =RESULTATS!I18 -> 590 | N19: =RESULTATS!O18 -> 26 | P19: =RESULTATS!Q18 -> 564 | R19: =RESULTATS!U18 -> 42 | T19: =RESULTATS!X18 -> 211 | V19: =RESULTATS!AA18 -> 66 | X19: =RESULTATS!AD18 -> 245
A20: C | B20: 01 | C20: - | D20: Schoelcher | E20: C | F20: =RESULTATS!E20 -> 1209 | H20: =RESULTATS!G20 -> 724 | J20: =RESULTATS!K20 -> 485 | L20: =RESULTATS!I20 -> 724 | N20: =RESULTATS!O20 -> 27 | P20: =RESULTATS!Q20 -> 697 | R20: =RESULTATS!U20 -> 44 | T20: =RESULTATS!X20 -> 210 | V20: =RESULTATS!AA20 -> 70 | X20: =RESULTATS!AD20 -> 373
A21: C | B21: 02 | C21: - | D21: Maison du Peuple | E21: C | F21: =RESULTATS!E21 -> 762 | H21: =RESULTATS!G21 -> 481 | J21: =RESULTATS!K21 -> 281 | L21: =RESULTATS!I21 -> 481 | N21: =RESULTATS!O21 -> 19 | P21: =RESULTATS!Q21 -> 462 | R21: =RESULTATS!U21 -> 32 | T21: =RESULTATS!X21 -> 126 | V21: =RESULTATS!AA21 -> 42 | X21: =RESULTATS!AD21 -> 262
A22: C | B22: 03 | C22: - | D22: Maison du Peuple | E22: C | F22: =RESULTATS!E22 -> 921 | H22: =RESULTATS!G22 -> 573 | J22: =RESULTATS!K22 -> 348 | L22: =RESULTATS!I22 -> 573 | N22: =RESULTATS!O22 -> 16 | P22: =RESULTATS!Q22 -> 557 | R22: =RESULTATS!U22 -> 29 | T22: =RESULTATS!X22 -> 154 | V22: =RESULTATS!AA22 -> 41 | X22: =RESULTATS!AD22 -> 333
A23: D | B23: 01 | C23: - | D23: Châteaudun | E23: C | F23: =RESULTATS!E23 -> 1074 | H23: =RESULTATS!G23 -> 638 | J23: =RESULTATS!K23 -> 436 | L23: =RESULTATS!I23 -> 638 | N23: =RESULTATS!O23 -> 27 | P23: =RESULTATS!Q23 -> 611 | R23: =RESULTATS!U23 -> 53 | T23: =RESULTATS!X23 -> 152 | V23: =RESULTATS!AA23 -> 48 | X23: =RESULTATS!AD23 -> 358
A24: D | B24: 02 | C24: - | D24: Châteaudun | E24: C | F24: =RESULTATS!E24 -> 838 | H24: =RESULTATS!G24 -> 501 | J24: =RESULTATS!K24 -> 337 | L24: =RESULTATS!I24 -> 501 | N24: =RESULTATS!O24 -> 26 | P24: =RESULTATS!Q24 -> 475 | R24: =RESULTATS!U24 -> 44 | T24: =RESULTATS!X24 -> 112 | V24: =RESULTATS!AA24 -> 52 | X24: =RESULTATS!AD24 -> 267
A25: D | B25: 03 | C25: - | D25: Châteaudun | E25: C | F25: =RESULTATS!E25 -> 912 | H25: =RESULTATS!G25 -> 559 | J25: =RESULTATS!K25 -> 353 | L25: =RESULTATS!I25 -> 559 | N25: =RESULTATS!O25 -> 30 | P25: =RESULTATS!Q25 -> 529 | R25: =RESULTATS!U25 -> 74 | T25: =RESULTATS!X25 -> 129 | V25: =RESULTATS!AA25 -> 47 | X25: =RESULTATS!AD25 -> 279
A26: E | B26: 01 | C26: - | D26: Raymond Aubert | E26: N | F26: =RESULTATS!E27 -> 1178 | H26: =RESULTATS!G27 -> 674 | J26: =RESULTATS!K27 -> 504 | L26: =RESULTATS!I27 -> 674 | N26: =RESULTATS!O27 -> 28 | P26: =RESULTATS!Q27 -> 646 | R26: =RESULTATS!U27 -> 86 | T26: =RESULTATS!X27 -> 142 | V26: =RESULTATS!AA27 -> 76 | X26: =RESULTATS!AD27 -> 342
A27: E | B27: 02 | C27: - | D27: Raymond Aubert | E27: N | F27: =RESULTATS!E28 -> 1212 | H27: =RESULTATS!G28 -> 696 | J27: =RESULTATS!K28 -> 516 | L27: =RESULTATS!I28 -> 696 | N27: =RESULTATS!O28 -> 31 | P27: =RESULTATS!Q28 -> 665 | R27: =RESULTATS!U28 -> 91 | T27: =RESULTATS!X28 -> 167 | V27: =RESULTATS!AA28 -> 64 | X27: =RESULTATS!AD28 -> 343
A28: E | B28: 03 | C28: - | D28: Raymond Aubert | E28: N | F28: =RESULTATS!E29 -> 1037 | H28: =RESULTATS!G29 -> 598 | J28: =RESULTATS!K29 -> 437 | L28: =RESULTATS!I29 -> 600 | N28: =RESULTATS!O29 -> 30 | P28: =RESULTATS!Q29 -> 570 | R28: =RESULTATS!U29 -> 76 | T28: =RESULTATS!X29 -> 174 | V28: =RESULTATS!AA29 -> 64 | X28: =RESULTATS!AD29 -> 256
A29: F | B29: 01 | C29: - | D29: Maison de l'enfant | E29: N | F29: =RESULTATS!E30 -> 776 | H29: =RESULTATS!G30 -> 476 | J29: =RESULTATS!K30 -> 300 | L29: =RESULTATS!I30 -> 476 | N29: =RESULTATS!O30 -> 30 | P29: =RESULTATS!Q30 -> 446 | R29: =RESULTATS!U30 -> 52 | T29: =RESULTATS!X30 -> 144 | V29: =RESULTATS!AA30 -> 44 | X29: =RESULTATS!AD30 -> 206
A30: F | B30: 02 | C30: - | D30: Émile Géhant | E30: N | F30: =RESULTATS!E31 -> 521 | H30: =RESULTATS!G31 -> 295 | J30: =RESULTATS!K31 -> 226 | L30: =RESULTATS!I31 -> 295 | N30: =RESULTATS!O31 -> 19 | P30: =RESULTATS!Q31 -> 276 | R30: =RESULTATS!U31 -> 41 | T30: =RESULTATS!X31 -> 101 | V30: =RESULTATS!AA31 -> 38 | X30: =RESULTATS!AD31 -> 96
A31: G | B31: 01 | C31: - | D31: Hubert Metzger | E31: S | F31: =RESULTATS!E33 -> 653 | H31: =RESULTATS!G33 -> 416 | J31: =RESULTATS!K33 -> 237 | L31: =RESULTATS!I33 -> 416 | N31: =RESULTATS!O33 -> 25 | P31: =RESULTATS!Q33 -> 391 | R31: =RESULTATS!U33 -> 50 | T31: =RESULTATS!X33 -> 144 | V31: =RESULTATS!AA33 -> 48 | X31: =RESULTATS!AD33 -> 149
A32: G | B32: 02 | C32: - | D32: Hubert Metzger | E32: S | F32: =RESULTATS!E34 -> 754 | H32: =RESULTATS!G34 -> 425 | J32: =RESULTATS!K34 -> 329 | L32: =RESULTATS!I34 -> 425 | N32: =RESULTATS!O34 -> 26 | P32: =RESULTATS!Q34 -> 399 | R32: =RESULTATS!U34 -> 55 | T32: =RESULTATS!X34 -> 163 | V32: =RESULTATS!AA34 -> 34 | X32: =RESULTATS!AD34 -> 147
A33: H | B33: 01 | C33: - | D33: Léonard de Vinci | E33: S | F33: =RESULTATS!E35 -> 1041 | H33: =RESULTATS!G35 -> 585 | J33: =RESULTATS!K35 -> 457 | L33: =RESULTATS!I35 -> 584 | N33: =RESULTATS!O35 -> 25 | P33: =RESULTATS!Q35 -> 559 | R33: =RESULTATS!U35 -> 65 | T33: =RESULTATS!X35 -> 190 | V33: =RESULTATS!AA35 -> 54 | X33: =RESULTATS!AD35 -> 250
A34: J | B34: 01 | C34: - | D34: René Rücklin | E34: S | F34: =RESULTATS!E36 -> 597 | H34: =RESULTATS!G36 -> 282 | J34: =RESULTATS!K36 -> 315 | L34: =RESULTATS!I36 -> 282 | N34: =RESULTATS!O36 -> 9 | P34: =RESULTATS!Q36 -> 273 | R34: =RESULTATS!U36 -> 50 | T34: =RESULTATS!X36 -> 98 | V34: =RESULTATS!AA36 -> 30 | X34: =RESULTATS!AD36 -> 95
A35: J | B35: 02 | C35: - | D35: René Rücklin | E35: S | F35: =RESULTATS!E37 -> 818 | H35: =RESULTATS!G37 -> 471 | J35: =RESULTATS!K37 -> 347 | L35: =RESULTATS!I37 -> 471 | N35: =RESULTATS!O37 -> 28 | P35: =RESULTATS!Q37 -> 443 | R35: =RESULTATS!U37 -> 47 | T35: =RESULTATS!X37 -> 148 | V35: =RESULTATS!AA37 -> 40 | X35: =RESULTATS!AD37 -> 208
A36: J | B36: 03 | C36: - | D36: René Rücklin | E36: S | F36: =RESULTATS!E38 -> 562 | H36: =RESULTATS!G38 -> 297 | J36: =RESULTATS!K38 -> 265 | L36: =RESULTATS!I38 -> 297 | N36: =RESULTATS!O38 -> 22 | P36: =RESULTATS!Q38 -> 275 | R36: =RESULTATS!U38 -> 30 | T36: =RESULTATS!X38 -> 116 | V36: =RESULTATS!AA38 -> 33 | X36: =RESULTATS!AD38 -> 96
A37: K | B37: 01 | C37: - | D37: Louis Pergaud | E37: O | F37: =RESULTATS!E40 -> 958 | H37: =RESULTATS!G40 -> 500 | J37: =RESULTATS!K40 -> 458 | L37: =RESULTATS!I40 -> 500 | N37: =RESULTATS!O40 -> 23 | P37: =RESULTATS!Q40 -> 477 | R37: =RESULTATS!U40 -> 43 | T37: =RESULTATS!X40 -> 208 | V37: =RESULTATS!AA40 -> 37 | X37: =RESULTATS!AD40 -> 189
A38: K | B38: 02 | C38: - | D38: Louis Pergaud | E38: O | F38: =RESULTATS!E41 -> 789 | H38: =RESULTATS!G41 -> 444 | J38: =RESULTATS!K41 -> 345 | L38: =RESULTATS!I41 -> 444 | N38: =RESULTATS!O41 -> 14 | P38: =RESULTATS!Q41 -> 430 | R38: =RESULTATS!U41 -> 47 | T38: =RESULTATS!X41 -> 185 | V38: =RESULTATS!AA41 -> 24 | X38: =RESULTATS!AD41 -> 174
A39: L | B39: 01 | C39: - | D39: Les Barres | E39: O | F39: =RESULTATS!E42 -> 1336 | H39: =RESULTATS!G42 -> 759 | J39: =RESULTATS!K42 -> 577 | L39: =RESULTATS!I42 -> 759 | N39: =RESULTATS!O42 -> 27 | P39: =RESULTATS!Q42 -> 732 | R39: =RESULTATS!U42 -> 97 | T39: =RESULTATS!X42 -> 218 | V39: =RESULTATS!AA42 -> 116 | X39: =RESULTATS!AD42 -> 301
A40: L | B40: 02 | C40: - | D40: Les Barres | E40: O | F40: =RESULTATS!E43 -> 1154 | H40: =RESULTATS!G43 -> 727 | J40: =RESULTATS!K43 -> 427 | L40: =RESULTATS!I43 -> 727 | N40: =RESULTATS!O43 -> 40 | P40: =RESULTATS!Q43 -> 687 | R40: =RESULTATS!U43 -> 104 | T40: =RESULTATS!X43 -> 219 | V40: =RESULTATS!AA43 -> 81 | X40: =RESULTATS!AD43 -> 283
D42: TOTAUX | F42: =SUM(F13:F40) -> 26935 | H42: =SUM(H13:H40) -> 15691 | J42: =SUM(J13:J40) -> 11243 | L42: =SUM(L13:L40) -> 15692 | N42: =SUM(N13:N40) -> 718 | P42: =SUM(P13:P40) -> 14974 | R42: =SUM(R13:R40) -> 1562 | T42: =SUM(T13:T40) -> 4786 | V42: =SUM(V13:V40) -> 1530 | X42: =SUM(X13:X40) -> 7096

Sheet REPART VdB 2T
A2: R É P A R T I T I O N des S I È G E S V.d.B. | I2: Nombre de sièges à répartir | J2: 45
I3: Majorité absolue des sièges | J3: =ROUNDUP(J2/2,0) -> 23
I4: Majorité absolue des Exprimés | J4: =INT(RESULTATS!$Q$47/2)+1 -> 7488
I5: 25% des Inscrits | J5: =SUM(RESULTATS!Q5*25%) -> 6733.75
I6: 5% des Exprimés | J6: =SUM(RESULTATS!$Q$47*5%) -> 748.7
I7: Quotient Electoral (1) | J7: =ROUND(SUMIF(C20:I20,">0",C14:I14)/(J2-J3),0) -> 681
C11: =Candidats!A2&" "&Candidats!B2 -> Marc ARCHAMBAULT | E11: =Candidats!A3&" "&Candidats!B3 -> Étienne BUTZBACH | G11: =Candidats!A4&" "&Candidats!B4 -> Bastien FAUDOT | I11: =Candidats!A5&" "&Candidats!B5 -> Damien MESLOT
A14: Suffrages Exprimés | C14: =RESULTATS!U47 -> 1562 | E14: =RESULTATS!X47 -> 4786 | G14: =RESULTATS!AA47 -> 1530 | I14: =RESULTATS!AD47 -> 7096
A16: % des Suffrages Exprimés | C16: =IF(RESULTATS!$Q$47=0,0,RESULTATS!U47/RESULTATS!$Q$47) -> 0.1043141445 | E16: =IF(RESULTATS!$Q$47=0,0,RESULTATS!X47/RESULTATS!$Q$47) -> 0.3196206758 | G16: =IF(RESULTATS!$Q$47=0,0,RESULTATS!AA47/RESULTATS!$Q$47) -> 0.102177107 | I16: =IF(RESULTATS!$Q$47=0,0,RESULTATS!AD47/RESULTATS!$Q$47) -> 0.4738880727
A18: Sièges à répartir | B18: =J2 -> 45
A20: Suffrages à prendre en compte (2) | C20: =IF(C14>=$J$6,C14,0) -> 1562 | E20: =IF(E14>=$J$6,E14,0) -> 4786 | G20: =IF(G14>=$J$6,G14,0) -> 1530 | I20: =IF(I14>=$J$6,I14,0) -> 7096
A22: Sièges attribués au scrutin majoritaire (3) | C22: =IF(AND(C14>E14,C14>G14,C14>I14),$J$3,0) -> 0 | E22: =IF(AND(E14>C14,E14>G14,E14>I14),$J$3,0) -> 0 | G22: =IF(AND(G14>C14,G14>E14,G14>I14),$J$3,0) -> 0 | I22: =IF(AND(I14>C14,I14>E14,I14>G14),$J$3,0) -> 23
A24: Sièges restants | B24: =IF($B$18-SUM($C$22:$I$22)>=0,$B$18-SUM($C$22:$I$22),0) -> 22
A25: La suite ne concerne plus que les listes >= 5% des exprimés
A26: Sièges attribués à la proportionnelle (4) | C26: =IF(OR(SUM($C$22:$I$22)=0,$J$7=0,C20=0),0,INT(C20/$J$7)) -> 2 | E26: =IF(OR(SUM($C$22:$I$22)=0,$J$7=0,E20=0),0,INT(E20/$J$7)) -> 7 | G26: =IF(OR(SUM($C$22:$I$22)=0,$J$7=0,G20=0),0,INT(G20/$J$7)) -> 2 | I26: =IF(OR(SUM($C$22:$I$22)=0,$J$7=0,I20=0),0,INT(I20/$J$7)) -> 10
A28: Sièges restants | B28: =IF($B$24-SUM($C$26:$I$26)>=0,$B$24-SUM($C$26:$I$26),0) -> 1
A30: 1ère moyenne des listes (5) | C30: =IF(AND($B$28>=1,$B$28<>$B$24,C20<>0),C20/(C26+1),0) -> 520.6666667 | E30: =IF(AND($B$28>=1,$B$28<>$B$24,E20<>0),E20/(E26+1),0) -> 598.25 | G30: =IF(AND($B$28>=1,$B$28<>$B$24,G20<>0),G20/(G26+1),0) -> 510 | I30: =IF(AND($B$28>=1,$B$28<>$B$24,I20<>0),I20/(I26+1),0) -> 645.0909091
A32: Sièges attribués à la 1ère plus forte moyenne | C32: =IF(AND(MAX($C30:$I30)=C30,$B$28<>0,$B$28<>$B$24),1,0) -> 0 | E32: =IF(AND(MAX($C30:$I30)=E30,$B$28<>0,$B$28<>$B$24),1,0) -> 0 | G32: =IF(AND(MAX($C30:$I30)=G30,$B$28<>0,$B$28<>$B$24),1,0) -> 0 | I32: =IF(AND(MAX($C30:$I30)=I30,$B$28<>0,$B$28<>$B$24),1,0) -> 1
A34: Sièges restants | B34: =IF($B$28-SUM($C$32:$I$32)>=0,$B$28-SUM($C$32:$I$32),0) -> 0
A36: 2ème moyenne des listes (5) | C36: =IF(AND($B$34>=1,$B$34<>$B$28,C20<>0),C20/(C26+C32+1),0) -> 0 | E36: =IF(AND($B$34>=1,$B$34<>$B$28,E20<>0),E20/(E26+E32+1),0) -> 0 | G36: =IF(AND($B$34>=1,$B$34<>$B$28,G20<>0),G20/(G26+G32+1),0) -> 0 | I36: =IF(AND($B$34>=1,$B$34<>$B$28,I20<>0),I20/(I26+I32+1),0) -> 0
A38: Sièges attribués à la 2ème plus forte moyenne | C38: =IF(AND(MAX($C36:$I36)=C36,$B$34<>0,$B$34<>$B$28),1,0) -> 0 | E38: =IF(AND(MAX($C36:$I36)=E36,$B$34<>0,$B$34<>$B$28),1,0) -> 0 | G38: =IF(AND(MAX($C36:$I36)=G36,$B$34<>0,$B$34<>$B$28),1,0) -> 0 | I38: =IF(AND(MAX($C36:$I36)=I36,$B$34<>0,$B$34<>$B$28),1,0) -> 0
A40: Sièges restants | B40: =IF($B$34-SUM($C$38:$I$38)>=0,$B$34-SUM($C$38:$I$38),0) -> 0
A42: 3ème moyenne des listes (5) | C42: =IF(AND($B$40>=1,$B$40<>$B$34,C20<>0),C20/(C26+C32+C38+1),0) -> 0 | E42: =IF(AND($B$40>=1,$B$40<>$B$34,E20<>0),E20/(E26+E32+E38+1),0) -> 0 | G42: =IF(AND($B$40>=1,$B$40<>$B$34,G20<>0),G20/(G26+G32+G38+1),0) -> 0 | I42: =IF(AND($B$40>=1,$B$40<>$B$34,I20<>0),I20/(I26+I32+I38+1),0) -> 0
A44: Sièges attribués à la 3ème plus forte moyenne | C44: =IF(AND(MAX($C42:$I42)=C42,$B$40<>0,$B$40<>$B$34),1,0) -> 0 | E44: =IF(AND(MAX($C42:$I42)=E42,$B$40<>0,$B$40<>$B$34),1,0) -> 0 | G44: =IF(AND(MAX($C42:$I42)=G42,$B$40<>0,$B$40<>$B$34),1,0) -> 0 | I44: =IF(AND(MAX($C42:$I42)=I42,$B$40<>0,$B$40<>$B$34),1,0) -> 0
A46: Sièges restants | B46: =IF($B$40-SUM($C$44:$I$44)>=0,$B$40-SUM($C$44:$I$44),0) -> 0
A48: 4ème moyenne des listes (5) | C48: =IF(AND($B$40>=1,$B$40<>$B$34,C26<>0),C26/(C32+C38+C44+1),0) -> 0 | E48: =IF(AND($B$40>=1,$B$40<>$B$34,E26<>0),E26/(E32+E38+E44+1),0) -> 0 | G48: =IF(AND($B$40>=1,$B$40<>$B$34,G26<>0),G26/(G32+G38+G44+1),0) -> 0 | I48: =IF(AND($B$40>=1,$B$40<>$B$34,I26<>0),I26/(I32+I38+I44+1),0) -> 0
A50: Sièges attribués à la 4ème plus forte moyenne | C50: =IF(AND(MAX($C48:$I48)=C48,$B$46<>0,$B$46<>$B$40),1,0) -> 0 | E50: =IF(AND(MAX($C48:$I48)=E48,$B$46<>0,$B$46<>$B$40),1,0) -> 0 | G50: =IF(AND(MAX($C48:$I48)=G48,$B$46<>0,$B$46<>$B$40),1,0) -> 0 | I50: =IF(AND(MAX($C48:$I48)=I48,$B$46<>0,$B$46<>$B$40),1,0) -> 0
A52: Sièges restants | B52: =IF($B$46-SUM($C$50:$I$50)>=0,$B$46-SUM($C$50:$I$50),0) -> 0
A56: TOTAL DES SIÈGES RÉPARTIS | C56: =SUM(C22+C26+C32+C38+C44+C50) -> 2 | E56: =SUM(E22+E26+E32+E38+E44+E50) -> 7 | G56: =SUM(G22+G26+G32+G38+G44+G50) -> 2 | I56: =SUM(I22+I26+I32+I38+I44+I50) -> 34
A58: (1) Somme des Suffrages Exprimés des listes >= 5% du total des Exprimés / le nombre de
A59: sièges restant après répartition au scrutin majoritaire
A60: (2)Listes ayant obtenues au mois 5% du total des Exprimés
A61: (3) Affectation de la Majorité absolue des sièges (23) à la liste qui a obtenu au moins la majorité absolue des Exprimés | E61: Si égalité des suffrages exprimés : attribution à la liste dont la moyenne d'âge est la plus élevée
A62: (4) Suffrages Exprimés de la liste / Quotient Electoral
A63: (5) Suffrages Exprimés de la liste / Sièges attribués à partir du second tour + 1
A64: * Pour l'attribution du dernier siège : si plusieurs listes ont la même moyenne le siège revient à la liste ayant le plus de suffrages; si encore égalité : candidat le plus âgé

Sheet REPART CAB 2T
A2: R É P A R T I T I O N des S I È G E S C.A.B. | I2: Nombre de sièges à répartir | J2: 30
I3: Majorité absolue des sièges | J3: =ROUNDUP(J2/2,0) -> 15
I4: Majorité absolue des Exprimés | J4: =INT(RESULTATS!$Q$47/2)+1 -> 7488
I5: 25% des Inscrits | J5: =SUM(RESULTATS!Q5*25%) -> 6733.75
I6: 5% des Exprimés | J6: =SUM(RESULTATS!$Q$47*5%) -> 748.7
I7: Quotient Electoral (1) | J7: =ROUND(SUMIF(C20:I20,">0",C14:I14)/(J2-J3),0) -> 998
C11: =Candidats!A2&" "&Candidats!B2 -> Marc ARCHAMBAULT | E11: =Candidats!A3&" "&Candidats!B3 -> Étienne BUTZBACH | G11: =Candidats!A4&" "&Candidats!B4 -> Bastien FAUDOT | I11: =Candidats!A5&" "&Candidats!B5 -> Damien MESLOT
A14: Suffrages Exprimés | C14: =RESULTATS!U47 -> 1562 | E14: =RESULTATS!X47 -> 4786 | G14: =RESULTATS!AA47 -> 1530 | I14: =RESULTATS!AD47 -> 7096
A16: % des Suffrages Exprimés | C16: =IF(RESULTATS!$Q$47=0,0,RESULTATS!U47/RESULTATS!$Q$47) -> 0.1043141445 | E16: =IF(RESULTATS!$Q$47=0,0,RESULTATS!X47/RESULTATS!$Q$47) -> 0.3196206758 | G16: =IF(RESULTATS!$Q$47=0,0,RESULTATS!AA47/RESULTATS!$Q$47) -> 0.102177107 | I16: =IF(RESULTATS!$Q$47=0,0,RESULTATS!AD47/RESULTATS!$Q$47) -> 0.4738880727
A18: Sièges à répartir | B18: =J2 -> 30
A20: Suffrages à prendre en compte (2) | C20: =IF(C14>=$J$6,C14,0) -> 1562 | E20: =IF(E14>=$J$6,E14,0) -> 4786 | G20: =IF(G14>=$J$6,G14,0) -> 1530 | I20: =IF(I14>=$J$6,I14,0) -> 7096
A22: Sièges attribués au scrutin majoritaire (3) | C22: =IF(AND(C14>E14,C14>G14,C14>I14),$J$3,0) -> 0 | E22: =IF(AND(E14>C14,E14>G14,E14>I14),$J$3,0) -> 0 | G22: =IF(AND(G14>C14,G14>E14,G14>I14),$J$3,0) -> 0 | I22: =IF(AND(I14>C14,I14>E14,I14>G14),$J$3,0) -> 15
A24: Sièges restants | B24: =IF($B$18-SUM($C$22:$I$22)>=0,$B$18-SUM($C$22:$I$22),0) -> 15
A25: La suite ne concerne plus que les listes >= 5% des exprimés
A26: Sièges attribués à la proportionnelle (4) | C26: =IF(OR(SUM($C$22:$I$22)=0,$J$7=0,C20=0),0,INT(C20/$J$7)) -> 1 | E26: =IF(OR(SUM($C$22:$I$22)=0,$J$7=0,E20=0),0,INT(E20/$J$7)) -> 4 | G26: =IF(OR(SUM($C$22:$I$22)=0,$J$7=0,G20=0),0,INT(G20/$J$7)) -> 1 | I26: =IF(OR(SUM($C$22:$I$22)=0,$J$7=0,I20=0),0,INT(I20/$J$7)) -> 7
A28: Sièges restants | B28: =IF($B$24-SUM($C$26:$I$26)>=0,$B$24-SUM($C$26:$I$26),0) -> 2
A30: 1ère moyenne des listes (5) | C30: =IF(AND($B$28>=1,$B$28<>$B$24,C20<>0),C20/(C26+1),0) -> 781 | E30: =IF(AND($B$28>=1,$B$28<>$B$24,E20<>0),E20/(E26+1),0) -> 957.2 | G30: =IF(AND($B$28>=1,$B$28<>$B$24,G20<>0),G20/(G26+1),0) -> 765 | I30: =IF(AND($B$28>=1,$B$28<>$B$24,I20<>0),I20/(I26+1),0) -> 887
A32: Sièges attribués à la 1ère plus forte moyenne | C32: =IF(AND(MAX($C30:$I30)=C30,$B$28<>0,$B$28<>$B$24),1,0) -> 0 | E32: =IF(AND(MAX($C30:$I30)=E30,$B$28<>0,$B$28<>$B$24),1,0) -> 1 | G32: =IF(AND(MAX($C30:$I30)=G30,$B$28<>0,$B$28<>$B$24),1,0) -> 0 | I32: =IF(AND(MAX($C30:$I30)=I30,$B$28<>0,$B$28<>$B$24),1,0) -> 0
A34: Sièges restants | B34: =IF($B$28-SUM($C$32:$I$32)>=0,$B$28-SUM($C$32:$I$32),0) -> 1
A36: 2ème moyenne des listes (5) | C36: =IF(AND($B$34>=1,$B$34<>$B$28,C20<>0),C20/(C26+C32+1),0) -> 781 | E36: =IF(AND($B$34>=1,$B$34<>$B$28,E20<>0),E20/(E26+E32+1),0) -> 797.6666667 | G36: =IF(AND($B$34>=1,$B$34<>$B$28,G20<>0),G20/(G26+G32+1),0) -> 765 | I36: =IF(AND($B$34>=1,$B$34<>$B$28,I20<>0),I20/(I26+I32+1),0) -> 887
A38: Sièges attribués à la 2ème plus forte moyenne | C38: =IF(AND(MAX($C36:$I36)=C36,$B$34<>0,$B$34<>$B$28),1,0) -> 0 | E38: =IF(AND(MAX($C36:$I36)=E36,$B$34<>0,$B$34<>$B$28),1,0) -> 0 | G38: =IF(AND(MAX($C36:$I36)=G36,$B$34<>0,$B$34<>$B$28),1,0) -> 0 | I38: =IF(AND(MAX($C36:$I36)=I36,$B$34<>0,$B$34<>$B$28),1,0) -> 1
A40: Sièges restants | B40: =IF($B$34-SUM($C$38:$I$38)>=0,$B$34-SUM($C$38:$I$38),0) -> 0
A42: 3ème moyenne des listes (5) | C42: =IF(AND($B$40>=1,$B$40<>$B$34,C20<>0),C20/(C26+C32+C38+1),0) -> 0 | E42: =IF(AND($B$40>=1,$B$40<>$B$34,E20<>0),E20/(E26+E32+E38+1),0) -> 0 | G42: =IF(AND($B$40>=1,$B$40<>$B$34,G20<>0),G20/(G26+G32+G38+1),0) -> 0 | I42: =IF(AND($B$40>=1,$B$40<>$B$34,I20<>0),I20/(I26+I32+I38+1),0) -> 0
A44: Sièges attribués à la 3ème plus forte moyenne | C44: =IF(AND(MAX($C42:$I42)=C42,$B$40<>0,$B$40<>$B$34),1,0) -> 0 | E44: =IF(AND(MAX($C42:$I42)=E42,$B$40<>0,$B$40<>$B$34),1,0) -> 0 | G44: =IF(AND(MAX($C42:$I42)=G42,$B$40<>0,$B$40<>$B$34),1,0) -> 0 | I44: =IF(AND(MAX($C42:$I42)=I42,$B$40<>0,$B$40<>$B$34),1,0) -> 0
A46: Sièges restants | B46: =IF($B$40-SUM($C$44:$I$44)>=0,$B$40-SUM($C$44:$I$44),0) -> 0
A50: TOTAL DES SIEGES REPARTIS | C50: =SUM(C22+C26+C32+C38+C44) -> 1 | E50: =SUM(E22+E26+E32+E38+E44) -> 5 | G50: =SUM(G22+G26+G32+G38+G44) -> 1 | I50: =SUM(I22+I26+I32+I38+I44) -> 23
A52: (1) Somme des Suffrages Exprimés des listes >= 5% du total des Exprimés / le nombre de
A53: sièges restant après répartition au scrutin majoritaire
A54: (2)Listes ayant obtenues au mois 5% du total des Exprimés
A55: (3) Affectation de la Majorité absolue des sièges (23) à la liste qui a obtenu au moins la majorité absolue des Exprimés | E55: Si égalité des suffrages exprimés : attribution à la liste dont la moyenne d'âge est la plus élevée
A56: (4) Suffrages Exprimés de la liste / Quotient Electoral
A57: (5) Suffrages Exprimés de la liste / Sièges attribués à partir du second tour + 1
A58: * Pour l'attribution du dernier siège : si plusieurs listes ont la même moyenne le siège revient à la liste ayant le plus de suffrages; si encore égalité : candidat le plus âgé

Sheet ELUS 2T
B2: DÉSIGNATION des ÉLUS au 2ème TOUR
C6: VdB | D6: CAB | G6: VdB | H6: CAB | K6: VdB | L6: CAB | O6: VdB | P6: CAB
A7: =Candidats!A2&" "&Candidats!B2 -> Marc ARCHAMBAULT | C7: ='REPART VdB 2T'!C56 -> 2 | D7: ='REPART CAB 2T'!C50 -> 1 | E7: =Candidats!A3&" "&Candidats!B3 -> Étienne BUTZBACH | G7: ='REPART VdB 2T'!E56 -> 7 | H7: ='REPART CAB 2T'!E50 -> 5 | I7: =Candidats!A4&" "&Candidats!B4 -> Bastien FAUDOT | K7: ='REPART VdB 2T'!G56 -> 2 | L7: ='REPART CAB 2T'!G50 -> 1 | M7: =Candidats!A5&" "&Candidats!B5 -> Damien MESLOT | O7: ='REPART VdB 2T'!I56 -> 34 | P7: ='REPART CAB 2T'!I50 -> 23
A8: 1 | B8: Marc ARCHAMBAULT | C8: =IF((C$7>=$A8),"ÉLU","") -> ÉLU | D8: ÉLU | E8: 1 | F8: Etienne BUTZBACH | G8: =IF((G$7>=$A8),"ÉLU","") -> ÉLU | H8: ÉLU | I8: 1 | J8: Bastien FAUDOT | K8: =IF((K$7>=$A8),"ÉLU","") -> ÉLU | L8: ÉLU | M8: 1 | N8: Damien MESLOT | O8: =IF((O$7>=$A8),"ÉLU","") -> ÉLU | P8: ÉLU
A9: 2 | B9: Marie-Eloïse NARDINI | C9: ÉLU | E9: 2 | F9: Samia JABER | G9: ÉLU | H9: ÉLU | I9: 2 | J9: Isabelle LOPEZ | K9: ÉLU | M9: 2 | N9: Florence BESANCENOT | O9: ÉLU | P9: ÉLU
A10: 3 | B10: Thibaut MONNIER | E10: 3 | F10: Gérard SIMON | G10: ÉLU | H10: ÉLU | I10: 3 | J10: Bruno KERN | M10: 3 | N10: Sébastien VIVOT | O10: ÉLU | P10: ÉLU
A11: 4 | B11: Patricia BOISUMEAU | E11: 4 | F11: Eva PEDROCCHI | G11: ÉLU | H11: ÉLU | I11: 4 | J11: Gwénaëlle RADAIS | M11: 4 | N11: Marie-Hélène IVOL | O11: ÉLU | P11: ÉLU
A12: 5 | B12: Eric WIEDMANN | E12: 5 | F12: Robert BELOT | G12: ÉLU | H12: ÉLU | I12: 5 | J12: Alain LETAILLEUR | M12: 5 | N12: Mustapha LOUNES | O12: ÉLU | P12: ÉLU
A13: 6 | B13: Marie-Jose LEHMANN | E13: 6 | F13: Jacqueline GUIOT | G13: ÉLU | I13: 6 | J13: Nagia MEGHRICHE | M13: 6 | N13: Delphine MENTRE | O13: ÉLU | P13: ÉLU
A14: 7 | B14: Claude FRANÇOIS | E14: 7 | F14: Mazouz BENLAZERI | G14: ÉLU | I14: 7 | J14: Olivier PREVOT | M14: 7 | N14: Ian BOUCARD | O14: ÉLU | P14: ÉLU
A15: 8 | B15: Olivia SCHNOEBELEN | E15: 8 | F15: Armelle LELEUP | I15: 8 | J15: Nadine DANTON-SCHALK | M15: 8 | N15: Marie ROCHETTE DE LEMPDES | O15: ÉLU | P15: ÉLU
A16: 9 | B16: Franck FOURE | E16: 9 | F16: René SCHMITT | I16: 9 | J16: Lakhdar CHERFAOUI | M16: 9 | N16: Jean-Marie HERZOG | O16: ÉLU | P16: ÉLU
A17: 10 | B17: Céline MAIROT | E17: 10 | F17: Francine GALLIEN | I17: 10 | J17: Géraldine SIMON | M17: 10 | N17: Monique MONNOT | O17: ÉLU | P17: ÉLU
A18: 11 | B18: Hervé BRUNET | E18: 11 | F18: Alain DREYFUS-SCHMIDT | I18: 11 | J18: Jean-Michel GLON-VILLENEUVE | M18: 11 | N18: Jean-Pierre MARCHAND | O18: ÉLU | P18: ÉLU
A19: 12 | B19: Ginette PETITPERRIN | E19: 12 | F19: Latifa GILLIOTTE | I19: 12 | J19: Véronique SOHIER | M19: 12 | N19: Marion VALLET | O19: ÉLU | P19: ÉLU
A20: 13 | B20: René CARDOT | E20: 13 | F20: Selim GUEMAZI | I20: 13 | J20: Philippe PEQUIGNOT | M20: 13 | N20: Gérard PIQUEPAILLE | O20: ÉLU | P20: ÉLU
A21: 14 | B21: Chloé BABELOT | E21: 14 | F21: Céline SOUAKRIA | I21: 14 | J21: Noura BOUGUERRA | M21: 14 | N21: Frieda BACHARETTI | O21: ÉLU | P21: ÉLU
A22: 15 | B22: Jean RECEVEUR | E22: 15 | F22: Hubert BELZ | I22: 15 | J22: Maurice SCHWARTZ | M22: 15 | N22: Alain PICARD | O22: ÉLU | P22: ÉLU
A23: 16 | B23: Leslie BROCARD | E23: 16 | F23: Marie-Christine MOREL | I23: 16 | J23: Marie-Laure SCHNEIDER | M23: 16 | N23: Marie STABILE | O23: ÉLU | P23: ÉLU
A24: 17 | B24: Dominique FREUND | E24: 17 | F24: Pascal MARTIN | I24: 17 | J24: Dominique MEA | M24: 17 | N24: Pierre-Jérôme COLLARD | O24: ÉLU | P24: ÉLU
A25: 18 | B25: Cindy BURGKHALTER | E25: 18 | F25: Nicole LARCAT | I25: 18 | J25: Aurélie JEANGERARD | M25: 18 | N25: Parvin CERF | O25: ÉLU | P25: ÉLU
A26: 19 | B26: Roger GUILLAUME | E26: 19 | F26: Azeddine GOUTAS | I26: 19 | J26: Abdel Jalil ABBAS-TURKI | M26: 19 | N26: Yves VOLA | O26: ÉLU | P26: ÉLU
A27: 20 | B27: Alexandra GROSS | E27: 20 | F27: Marie-Antoinette VACELET | I27: 20 | J27: Charline COUTHERUT | M27: 20 | N27: Loubna CHEKOUAT | O27: ÉLU | P27: ÉLU
A28: 21 | B28: Gaëtan DEVILLERS | C28: =IF((C$7>=$A28),"ÉLU","") ->  | E28: 21 | F28: Bertrand THIEBAUD | G28: =IF((G$7>=$A28),"ÉLU","") ->  | I28: 21 | J28: Vladimir DJORDJEVIC | K28: =IF((K$7>=$A28),"ÉLU","") ->  | M28: 21 | N28: Tony KNEIP | O28: =IF((O$7>=$A28),"ÉLU","") -> ÉLU | P28: ÉLU
A29: 22 | B29: Denise MICHALLAND | E29: 22 | F29: Corinne BOHLINGER | I29: 22 | J29: Josée MARTINEZ | M29: 22 | N29: Claude JOLY | O29: ÉLU | P29: ÉLU
A30: 23 | B30: Maurice FERNEL | E30: 23 | F30: Abdelghani NIAME | I30: 23 | J30: Christian PROUST | M30: 23 | N30: Brice MICHEL | O30: ÉLU | P30: ÉLU
A31: 24 | B31: Marie-Antoinette DECLE | E31: 24 | F31: Martine DAERON | I31: 24 | J31: Monique NANINO | M31: 24 | N31: Marie-Thérèse FOHRER | O31: ÉLU
A32: 25 | B32: Germain THONNESSEN | E32: 25 | F32: Joël BIGNAMI | I32: 25 | J32: Yacine HOUADEF | M32: 25 | N32: François BORON | O32: ÉLU
A33: 26 | B33: Sophie CANET | E33: 26 | F33: Anny MOREL-GRUNBLATT | I33: 26 | J33: Madeleine FLEURY | M33: 26 | N33: Pascale CHAGUE | O33: ÉLU
A34: 27 | B34: Manuel CHANTERANNE | E34: 27 | F34: Salih AKTAS | I34: 27 | J34: Jean-Paul BOURREAU | M34: 27 | N34: Guy CORVEC | O34: ÉLU
A35: 28 | B35: Chantal TOURDOT | E35: 28 | F35: Marie-José JOURD'HEUIL | I35: 28 | J35: Eva GUYOT | M35: 28 | N35: Léa MANGUIN | O35: ÉLU
A36: 29 | B36: Cyril BURGKHALTER | E36: 29 | F36: Francis COTTET | I36: 29 | J36: Guillaume ASTIER | M36: 29 | N36: David DIMEY | O36: ÉLU
A37: 30 | B37: Marie DENIZET | E37: 30 | F37: Christine POWOLNY | I37: 30 | J37: Fabienne DERRIEN | M37: 30 | N37: Christiane EINHORN | O37: ÉLU
A38: 31 | B38: Mathieu KAMINSKI | E38: 31 | F38: Philippe VENCK | I38: 31 | J38: Denis GREVILLOT | M38: 31 | N38: Olivier DEROY | O38: ÉLU
A39: 32 | B39: Florence OUDRY | E39: 32 | F39: Lorène BAUDET | I39: 32 | J39: Zoé RUNDSTADLER | M39: 32 | N39: Brigitte BRUN | O39: ÉLU
A40: 33 | B40: Philippe WITTLING | E40: 33 | F40: Dominique SIESS | I40: 33 | J40: Guy DESGRANGES | M40: 33 | N40: Emmanuel FILLAUDEAU | O40: ÉLU
A41: 34 | B41: Juliette BRULLOT | E41: 34 | F41: Evelyne GIULIANI | I41: 34 | J41: Cécilia PAUVRET | M41: 34 | N41: Isabelle HELIOT | O41: ÉLU
A42: 35 | B42: Eric NICOLAS | E42: 35 | F42: Pascal BROGGI | I42: 35 | J42: Jérémy GRESSOT | M42: 35 | N42: Patrick FORESTIER
A43: 36 | B43: Sabrina LE-FEVRE | E43: 36 | F43: Rahima HOUADEF | I43: 36 | J43: Noëmie HENNEQUIN | M43: 36 | N43: Dominique CHIPEAUX
A44: 37 | B44: François RITZMANN | E44: 37 | F44: Claude PAUFERT | I44: 37 | J44: Dominique FUMEY | M44: 37 | N44: Ugur UCAL
A45: 38 | B45: Lucette LAMBERT | E45: 38 | F45: Chantal GAMMA | I45: 38 | J45: Alexandra KRSTIC | M45: 38 | N45: Michelle BECUE
A46: 39 | B46: Nicolas OBRY | E46: 39 | F46: Philippe LEGROS | I46: 39 | J46: André DA COL | M46: 39 | N46: Gérard THOUVEREZ
A47: 40 | B47: Andrée LAMIELLE | E47: 40 | F47: Hermine LIBAI | I47: 40 | J47: Christelle BOISSON | M47: 40 | N47: Cécile DAVID
A48: 41 | B48: Denis FURDERER | E48: 41 | F48: Nicolas FRIOT | I48: 41 | J48: Jean-Michel PERCHE | M48: 41 | N48: Alain COULOT
A49: 42 | B49: Germaine MEYER | E49: 42 | F49: Linda BOUSSAHA | I49: 42 | J49: Renée REMY | M49: 42 | N49: Karine BOSSU
A50: 43 | B50: Denis LE-FEVRE | E50: 43 | F50: Mohamed BOULGUID | I50: 43 | J50: Paul COLLIN | M50: 43 | N50: Alain AIMMEUR
A51: 44 | B51: Louisette BRULLOT | E51: 44 | F51: Myriam LATOUR | I51: 44 | J51: Dominique ROGNON | M51: 44 | N51: Jocelyne JECKER
A52: 45 | B52: René THIRIET | E52: 45 | F52: Arthur COURTY | I52: 45 | J52: Édouard BONTEMPS | M52: 45 | N52: Christian BEAUSEIGNEUR

Sheet Candidats
A1: Prénom | B1: Nom | C1: Parti | D1: Photo | E1: Commentaire | F1: Nb sièges | G1: Libellé
A2: Marc | B2: ARCHAMBAULT | C2: Belfort Bleu marine | D2: marchambault | E2: =CONCATENATE(F2,G2) -> 2 sièges attribués | F2: =IF(RESULTATS!$Q$3=28,'REPART VdB 2T'!C$56,"") -> 2 | G2: =IF(RESULTATS!$Q$3=28,IF('REPART VdB 2T'!C$56>1," sièges attribués"," siège attribué"),"") -> sièges attribués
A3: Étienne | B3: BUTZBACH | C3: Belfort, Innovante et bienveillante | D3: ebutzbach | E3: =CONCATENATE(F3,G3) -> 7 sièges attribués | F3: =IF(RESULTATS!$Q$3=28,'REPART VdB 2T'!E$56,"") -> 7 | G3: =IF(RESULTATS!$Q$3=28,IF('REPART VdB 2T'!E$56>1," sièges attribués"," siège attribué"),"") -> sièges attribués
A4: Bastien | B4: FAUDOT | C4: Oser Belfort | D4: bfaudot | E4: 2 sièges attribués | F4: =IF(RESULTATS!$Q$3=28,'REPART VdB 2T'!G$56,"") -> 2 | G4: =IF(RESULTATS!$Q$3=28,IF('REPART VdB 2T'!G$56>1," sièges attribués"," siège attribué"),"") -> sièges attribués
A5: Damien | B5: MESLOT | C5: Tous ensemble pour Belfort | D5: dmeslot | E5: 34 sièges attribués | F5: =IF(RESULTATS!$Q$3=28,'REPART VdB 2T'!I$56,"") -> 34 | G5: =IF(RESULTATS!$Q$3=28,IF('REPART VdB 2T'!I$56>1," sièges attribués"," siège attribué"),"") -> sièges attribués

Sheet GRAPHE
A1: Mairie de Belfort | C1: ÉLECTIONS MUNICIPALES | K1: 2014-03-30
C3: =COUNTIF(RESULTATS!$I$12:$I$18,">0")+COUNTIF(RESULTATS!$I$20:$I$25,">0")+COUNTIF(RESULTATS!$I$27:$I$31,">0")+COUNTIF(RESULTATS!$I$33:$I$38,">0")+COUNTIF(RESULTATS!$I$40:$I$43,">0") -> 28 | D3: Bureaux sur | F3: =COUNTIF(RESULTATS!$E$12:$E$18,">0")+COUNTIF(RESULTATS!$E$20:$E$25,">0")+COUNTIF(RESULTATS!$E$27:$E$31,">0")+COUNTIF(RESULTATS!$E$33:$E$38,">0")+COUNTIF(RESULTATS!$E$40:$E$43,">0") -> 28
C4: =SUMIF(RESULTATS!$I$12:$I$18,">0",RESULTATS!$E$12:$E$18)+SUMIF(RESULTATS!$I$20:$I$25,">0",RESULTATS!$E$20:$E$25)+SUMIF(RESULTATS!$I$27:$I$31,">0",RESULTATS!$E$27:$E$31)+SUMIF(RESULTATS!$I$33:$I$38,">0",RESULTATS!$E$33:$E$38)+SUMIF(RESULTATS!$I$40:$I$43,">0",RESULTATS!$E$40:$E$43) -> 26935 | D4: Inscrits sur | F4: =RESULTATS!E47 -> 26935 | G4: soit | H4: : | I4: =C4/F4 -> 1
